Workbook

Sheet 1
A1: 2015-04-01
A2: Лаборанты:
A3: Опрераторы:
A5: Лаборант, оператор | B5: Заказчик, адрес строительного объекта | C5: Время | D5: Дата формования | E5: Класс бетонной смеси | F5: Шифр рецепта | G5: Температура бет.смеси, ºС | H5: ОК, см | I5: Плотность бет/см в уплотненном состоянии, кг/м3 | J5: дата испытаний | K5: Возраст, сут | L5: Масса образца, г | M5: Линейные размеры образца, см | P5: Площадь, см² | Q5: Плотность образца, г/см³ | R5: Средняя плотность серии образцов, г/см³ | S5: Разрушающая нагрузка в Кн | T5: Прочность бетона, приведенная к базовому размеру образца, Мпа | U5: Средняя прочность серии образцов, Мпа | V5: Требуемая прочность, Мпа | W5: % от требуемой прочности
M7: Длина | N7: Ширина | O7: Высота
A10: 1 | B10: 2 | C10: 3 | D10: 4 | E10: 5 | F10: 6 | G10: 7 | H10: 8 | I10: 9 | J10: 10 | K10: 11 | L10: 12 | M10: 13 | P10: 14 | Q10: 15 | R10: 16 | S10: 17 | T10: 18 | U10: 19 | V10: 20 | W10: 21
A11: =INDEX(Корректировка!B3:B10,Корректировка!A3) -> Болтенкова И.Ю. | D11: =$A$1 -> 2015-04-01 | E11: В25 | F11: Б07.1.02.1-15 | G11: 18 | H11: 19 | I11: 2.338 | J11: =$A$1+$K$11 -> 2015-04-08 | K11: 7 | L11: 2348 | M11: 10 | N11: 10 | O11: 10 | P11: =M11*N11 -> 100 | Q11: =L11/(M11*N11*O11) -> 2.348 | R11: =AVERAGE(Q11:Q12) -> 2.352 | S11: 315 | T11: =((S11*10)/P11)*0.95 -> 29.925 | U11: =SUM($T$11:$T$12)/2 -> 29.3075 | V11: =VLOOKUP(E11,Корректировка!F:G,2,0) -> 32.1 | W11: =(U11*100)/V11 -> 91.30062305
A12: =A11 -> Болтенкова И.Ю. | B12: =B11 -> 0 | C12: =C11 -> 00:00:00 | D12: =D11 -> 2015-04-01 | E12: =E11 -> В25 | F12: Б07.1.02.1-15 | G12: 18 | H12: 19 | I12: 2.338 | J12: =J11 -> 2015-04-08 | K12: 7 | L12: 2356 | M12: 10 | N12: 10 | O12: 10 | P12: =M12*N12 -> 100 | Q12: =L12/(M12*N12*O12) -> 2.356 | R12: =AVERAGE(Q12:Q13) -> 2.351 | S12: 302 | T12: =((S12*10)/P12)*0.95 -> 28.69 | U12: =SUM($T$11:$T$12)/2 -> 29.3075 | V12: =V11 -> 32.1 | W12: =W11 -> 91.30062305
A13: =INDEX(Корректировка!D3:D10,Корректировка!C3) -> Масленков А.А | B13: =B11 -> 0 | C13: 00:00:00 | D13: 2015-04-01 | E13: В25 | F13: Б07.1.02.1-15 | G13: 18 | H13: 19 | I13: 2.338 | J13: =$A$1+$K$13 -> 2015-04-29 | K13: 28 | L13: 2346 | M13: 10 | N13: 10 | O13: 10 | P13: 100 | Q13: 2.346 | R13: =AVERAGE($Q$13:$Q$14) -> 2.349 | S13: 489 | T13: 46.455 | U13: =SUM($T$13:$T$14)/2 -> 47.215 | V13: =V11 -> 32.1 | W13: =(U13*100)/V13 -> 147.0872274
A14: =A13 -> Масленков А.А | B14: =B11 -> 0 | C14: 00:00:00 | D14: 2015-04-01 | E14: В25 | F14: Б07.1.02.1-15 | G14: 18 | H14: 19 | I14: 2.338 | J14: =J13 -> 2015-04-29 | K14: =K13 -> 28 | L14: 2352 | M14: 10 | N14: 10 | O14: 10 | P14: 100 | Q14: 2.352 | R14: =AVERAGE($Q$13:$Q$14) -> 2.349 | S14: 505 | T14: 47.975 | U14: =SUM($T$13:$T$14)/2 -> 47.215 | V14: =V11 -> 32.1 | W14: =W13 -> 147.0872274
A15: =A11 -> Болтенкова И.Ю. | D15: =$A$1 -> 2015-04-01 | E15: В30 | F15: Б07.1.02.1-15 | G15: 18 | H15: 19 | I15: 2.338 | J15: =$A$1+$K$15 -> 2015-04-08 | K15: 7 | L15: 2348 | M15: 10 | N15: 10 | O15: 10 | P15: =M15*N15 -> 100 | Q15: =L15/(M15*N15*O15) -> 2.348 | R15: =AVERAGE(Q15:Q16) -> 2.352 | S15: 315 | T15: =((S15*10)/P15)*0.95 -> 29.925 | U15: =SUM($T$11:$T$12)/2 -> 29.3075 | V15: =VLOOKUP(E15,Корректировка!F:G,2,0) -> 38.5 | W15: =(U15*100)/V15 -> 76.12337662
A16: Болтенкова И.Ю. | B16: =B15 -> 0 | C16: =C15 -> 00:00:00 | D16: =D15 -> 2015-04-01 | E16: =E15 -> В30 | F16: =F15 -> Б07.1.02.1-15 | G16: 18 | H16: 19 | I16: 2.338 | J16: =J15 -> 2015-04-08 | K16: =K15 -> 7 | L16: 2356 | M16: 10 | N16: 10 | O16: 10 | P16: =M16*N16 -> 100 | Q16: =L16/(M16*N16*O16) -> 2.356 | R16: =AVERAGE(Q16:Q17) -> 2.351 | S16: 302 | T16: =((S16*10)/P16)*0.95 -> 28.69 | U16: =SUM($T$11:$T$12)/2 -> 29.3075 | V16: =V15 -> 38.5 | W16: =W15 -> 76.12337662
A17: Масленков А.А | B17: =B15 -> 0 | C17: 00:00:00 | D17: 2015-04-01 | E17: В30 | F17: Б07.1.02.1-15 | G17: 18 | H17: 19 | I17: 2.338 | J17: =$A$1+$K$17 -> 2015-04-29 | K17: 28 | L17: 2346 | M17: 10 | N17: 10 | O17: 10 | P17: 100 | Q17: 2.346 | R17: =AVERAGE($Q$13:$Q$14) -> 2.349 | S17: 489 | T17: 46.455 | U17: =SUM($T$13:$T$14)/2 -> 47.215 | V17: =V15 -> 38.5 | W17: =(U17*100)/V17 -> 122.6363636
A18: Масленков А.А | B18: =B15 -> 0 | C18: 00:00:00 | D18: 2015-04-01 | E18: В30 | F18: Б07.1.02.1-15 | G18: 18 | H18: 19 | I18: 2.338 | J18: =J17 -> 2015-04-29 | K18: =K17 -> 28 | L18: 2352 | M18: 10 | N18: 10 | O18: 10 | P18: 100 | Q18: 2.352 | R18: =AVERAGE($Q$13:$Q$14) -> 2.349 | S18: 505 | T18: 47.975 | U18: =SUM($T$13:$T$14)/2 -> 47.215 | V18: =V15 -> 38.5 | W18: =W17 -> 122.6363636
A19: Болтенкова И.Ю. | D19: =$A$1 -> 2015-04-01 | E19: В7,5 | F19: Б07.1.02.1-15 | G19: 18 | H19: 19 | I19: 2.338 | J19: =$A$1+$K$19 -> 2015-04-08 | K19: 7 | L19: 2348 | M19: 10 | N19: 10 | O19: 10 | P19: =M19*N19 -> 100 | Q19: =L19/(M19*N19*O19) -> 2.348 | R19: =AVERAGE(Q19:Q20) -> 2.352 | S19: 315 | T19: =((S19*10)/P19)*0.95 -> 29.925 | U19: =SUM($T$11:$T$12)/2 -> 29.3075 | V19: =VLOOKUP(E19,Корректировка!F:G,2,0) -> 9.6 | W19: =(U19*100)/V19 -> 305.2864583
A20: Болтенкова И.Ю. | B20: =B19 -> 0 | C20: =C19 -> 00:00:00 | D20: =D19 -> 2015-04-01 | E20: =E19 -> В7,5 | F20: =F19 -> Б07.1.02.1-15 | G20: 18 | H20: 19 | I20: 2.338 | J20: =J19 -> 2015-04-08 | K20: =K19 -> 7 | L20: 2356 | M20: 10 | N20: 10 | O20: 10 | P20: =M20*N20 -> 100 | Q20: =L20/(M20*N20*O20) -> 2.356 | R20: =AVERAGE(Q20:Q21) -> 2.351 | S20: 302 | T20: =((S20*10)/P20)*0.95 -> 28.69 | U20: =SUM($T$11:$T$12)/2 -> 29.3075 | V20: =V19 -> 9.6 | W20: =W19 -> 305.2864583
A21: Масленков А.А | B21: =B19 -> 0 | C21: 00:00:00 | D21: 2015-04-01 | E21: В7,5 | F21: Б07.1.02.1-15 | G21: 18 | H21: 19 | I21: 2.338 | J21: =$A$1+$K$21 -> 2015-04-29 | K21: 28 | L21: 2346 | M21: 10 | N21: 10 | O21: 10 | P21: 100 | Q21: 2.346 | R21: =AVERAGE($Q$13:$Q$14) -> 2.349 | S21: 489 | T21: 46.455 | U21: =SUM($T$13:$T$14)/2 -> 47.215 | V21: =V19 -> 9.6 | W21: =(U21*100)/V21 -> 491.8229167
A22: Масленков А.А | B22: =B19 -> 0 | C22: 00:00:00 | D22: 2015-04-01 | E22: В7,5 | F22: Б07.1.02.1-15 | G22: 18 | H22: 19 | I22: 2.338 | J22: =J21 -> 2015-04-29 | K22: =K21 -> 28 | L22: 2352 | M22: 10 | N22: 10 | O22: 10 | P22: 100 | Q22: 2.352 | R22: =AVERAGE($Q$13:$Q$14) -> 2.349 | S22: 505 | T22: 47.975 | U22: =SUM($T$13:$T$14)/2 -> 47.215 | V22: =V19 -> 9.6 | W22: =W21 -> 491.8229167
A23: Болтенкова И.Ю. | D23: =$A$1 -> 2015-04-01 | E23: В15 | F23: Б07.1.02.1-15 | G23: 18 | H23: 19 | I23: 2.338 | J23: =$A$1+$K$15 -> 2015-04-08 | K23: 7 | L23: 2348 | M23: 10 | N23: 10 | O23: 10 | P23: =M23*N23 -> 100 | Q23: =L23/(M23*N23*O23) -> 2.348 | R23: =AVERAGE(Q23:Q24) -> 2.352 | S23: 315 | T23: =((S23*10)/P23)*0.95 -> 29.925 | U23: =SUM($T$11:$T$12)/2 -> 29.3075 | V23: =VLOOKUP(E23,Корректировка!F:G,2,0) -> 19.3 | W23: =(U23*100)/V23 -> 151.8523316
A24: Болтенкова И.Ю. | B24: =B23 -> 0 | C24: =C23 -> 00:00:00 | D24: =D23 -> 2015-04-01 | E24: =E23 -> В15 | F24: =F23 -> Б07.1.02.1-15 | G24: 18 | H24: 19 | I24: 2.338 | J24: =J23 -> 2015-04-08 | K24: =K23 -> 7 | L24: 2356 | M24: 10 | N24: 10 | O24: 10 | P24: =M24*N24 -> 100 | Q24: =L24/(M24*N24*O24) -> 2.356 | R24: =AVERAGE(Q24:Q25) -> 2.351 | S24: 302 | T24: =((S24*10)/P24)*0.95 -> 28.69 | U24: =SUM($T$11:$T$12)/2 -> 29.3075 | V24: =V23 -> 19.3 | W24: =W23 -> 151.8523316
A25: Масленков А.А | B25: =B23 -> 0 | C25: 00:00:00 | D25: 2015-04-01 | E25: В15 | F25: Б07.1.02.1-15 | G25: 18 | H25: 19 | I25: 2.338 | J25: =$A$1+$K$17 -> 2015-04-29 | K25: 28 | L25: 2346 | M25: 10 | N25: 10 | O25: 10 | P25: 100 | Q25: 2.346 | R25: =AVERAGE($Q$13:$Q$14) -> 2.349 | S25: 489 | T25: 46.455 | U25: =SUM($T$13:$T$14)/2 -> 47.215 | V25: =V23 -> 19.3 | W25: =(U25*100)/V25 -> 244.6373057
A26: Масленков А.А | B26: =B23 -> 0 | C26: 00:00:00 | D26: 2015-04-01 | E26: В15 | F26: Б07.1.02.1-15 | G26: 18 | H26: 19 | I26: 2.338 | J26: =J25 -> 2015-04-29 | K26: =K25 -> 28 | L26: 2352 | M26: 10 | N26: 10 | O26: 10 | P26: 100 | Q26: 2.352 | R26: =AVERAGE($Q$13:$Q$14) -> 2.349 | S26: 505 | T26: 47.975 | U26: =SUM($T$13:$T$14)/2 -> 47.215 | V26: =V23 -> 19.3 | W26: =W25 -> 244.6373057
A27: Болтенкова И.Ю. | D27: =$A$1 -> 2015-04-01 | E27: В22,5 | F27: Б07.1.02.1-15 | G27: 18 | H27: 19 | I27: 2.338 | J27: =$A$1+$K$19 -> 2015-04-08 | K27: 7 | L27: 2348 | M27: 10 | N27: 10 | O27: 10 | P27: =M27*N27 -> 100 | Q27: =L27/(M27*N27*O27) -> 2.348 | R27: =AVERAGE(Q27:Q28) -> 2.352 | S27: 315 | T27: =((S27*10)/P27)*0.95 -> 29.925 | U27: =SUM($T$11:$T$12)/2 -> 29.3075 | V27: =VLOOKUP(E27,Корректировка!F:G,2,0) -> 28.9 | W27: =(U27*100)/V27 -> 101.4100346
A28: Болтенкова И.Ю. | B28: =B27 -> 0 | C28: =C27 -> 00:00:00 | D28: =D27 -> 2015-04-01 | E28: =E27 -> В22,5 | F28: =F27 -> Б07.1.02.1-15 | G28: 18 | H28: 19 | I28: 2.338 | J28: =J27 -> 2015-04-08 | K28: =K27 -> 7 | L28: 2356 | M28: 10 | N28: 10 | O28: 10 | P28: =M28*N28 -> 100 | Q28: =L28/(M28*N28*O28) -> 2.356 | R28: =AVERAGE(Q28:Q29) -> 2.351 | S28: 302 | T28: =((S28*10)/P28)*0.95 -> 28.69 | U28: =SUM($T$11:$T$12)/2 -> 29.3075 | V28: =V27 -> 28.9 | W28: =W27 -> 101.4100346
A29: Масленков А.А | B29: =B27 -> 0 | C29: 00:00:00 | D29: 2015-04-01 | E29: В22,5 | F29: Б07.1.02.1-15 | G29: 18 | H29: 19 | I29: 2.338 | J29: =$A$1+$K$21 -> 2015-04-29 | K29: 28 | L29: 2346 | M29: 10 | N29: 10 | O29: 10 | P29: 100 | Q29: 2.346 | R29: =AVERAGE($Q$13:$Q$14) -> 2.349 | S29: 489 | T29: 46.455 | U29: =SUM($T$13:$T$14)/2 -> 47.215 | V29: =V27 -> 28.9 | W29: =(U29*100)/V29 -> 163.3737024
A30: Масленков А.А | B30: =B27 -> 0 | C30: 00:00:00 | D30: 2015-04-01 | E30: В22,5 | F30: Б07.1.02.1-15 | G30: 18 | H30: 19 | I30: 2.338 | J30: =J29 -> 2015-04-29 | K30: =K29 -> 28 | L30: 2352 | M30: 10 | N30: 10 | O30: 10 | P30: 100 | Q30: 2.352 | R30: =AVERAGE($Q$13:$Q$14) -> 2.349 | S30: 505 | T30: 47.975 | U30: =SUM($T$13:$T$14)/2 -> 47.215 | V30: =V27 -> 28.9 | W30: =W29 -> 163.3737024
A31: =A11 -> Болтенкова И.Ю. | D31: =A1 -> 2015-04-01 | E31: М150 | F31: Р75.02.86.-25 | G31: 12 | H31: 9 | I31: 745 | J31: =$A$1+$K$31 -> 2015-04-08 | K31: 7 | L31: 648 | M31: 7.07 | N31: 7.07 | O31: 7.07 | P31: =M31*N31 -> 49.9849 | Q31: =L31/(M31*N31*O31)*1000 -> 1833.651358 | R31: =AVERAGE(Q31:Q33) -> 1986.455638 | S31: 74 | T31: =(S31/((M31*N31/100))*0.085) -> 12.58380031 | U31: =SUM(T31:T33)/3 -> 9.522875909 | V31: =VLOOKUP(E31,Корректировка!I:J,2,0) -> 12.8 | W31: =(U31*100)/V31 -> 74.39746804
A32: =A12 -> Болтенкова И.Ю. | B32: =B31 -> 0 | C32: =C31 -> 00:00:00 | D32: =A1 -> 2015-04-01 | E32: =E31 -> М150 | F32: =F31 -> Р75.02.86.-25 | G32: =G31 -> 12 | H32: 9 | I32: 745 | J32: =J31 -> 2015-04-08 | K32: 7 | L32: 743 | M32: 7.07 | N32: 7.07 | O32: 7.07 | P32: =M32*N32 -> 49.9849 | Q32: 2102.473702 | R32: =R31 -> 1986.455638 | S32: 52 | T32: =(S32/((M32*N32/100))*0.085) -> 8.842670486 | U32: =U31 -> 9.522875909 | V32: =V31 -> 12.8 | W32: =W31 -> 74.39746804
A33: =A11 -> Болтенкова И.Ю. | B33: =B31 -> 0 | C33: =C31 -> 00:00:00 | D33: =A1 -> 2015-04-01 | E33: =E31 -> М150 | F33: =F31 -> Р75.02.86.-25 | G33: =G31 -> 12 | H33: 9 | I33: 745 | J33: =J31 -> 2015-04-08 | K33: 7 | L33: 715 | M33: 7.07 | N33: 7.07 | O33: 7.07 | P33: =M33*N33 -> 49.9849 | Q33: 2023.241854 | R33: =R31 -> 1986.455638 | S33: 42 | T33: 7.142156931 | U33: =U31 -> 9.522875909 | V33: =V31 -> 12.8 | W33: =W31 -> 74.39746804
A34: =A13 -> Масленков А.А | B34: =B31 -> 0 | C34: =C31 -> 00:00:00 | D34: =A1 -> 2015-04-01 | E34: =E31 -> М150 | F34: =F31 -> Р75.02.86.-25 | G34: =G31 -> 12 | H34: =H31 -> 9 | I34: =I31 -> 745 | J34: =$A$1+$K$34 -> 2015-04-29 | K34: 28 | L34: 834 | M34: 7.07 | N34: 7.07 | O34: 7.07 | P34: 49.9849 | Q34: 2359.977211 | R34: =AVERAGE(Q34:Q36) -> 2090.211631 | S34: 116 | T34: 19.72595724 | U34: =SUM(T34:T36)/3 -> 18.87570046 | V34: =V31 -> 12.8 | W34: =(U34*100)/V34 -> 147.4664099
A35: =A14 -> Масленков А.А | B35: =B31 -> 0 | C35: =C31 -> 00:00:00 | D35: =A1 -> 2015-04-01 | E35: =E31 -> М150 | F35: =F31 -> Р75.02.86.-25 | G35: =G31 -> 12 | H35: =H31 -> 9 | I35: =I31 -> 745 | J35: =J34 -> 2015-04-29 | K35: =K34 -> 28 | L35: 637 | M35: 7.07 | N35: 7.07 | O35: 7.07 | P35: 49.9849 | Q35: 1802.52456 | R35: =R34 -> 2090.211631 | S35: 107 | T35: 18.19549504 | U35: =U34 -> 18.87570046 | V35: =V34 -> 12.8 | W35: =W34 -> 147.4664099
A36: =A13 -> Масленков А.А | B36: =B31 -> 0 | C36: =C31 -> 00:00:00 | D36: =A1 -> 2015-04-01 | E36: =E31 -> М150 | F36: =F31 -> Р75.02.86.-25 | G36: =G31 -> 12 | H36: =H31 -> 9 | I36: =I31 -> 745 | J36: =J34 -> 2015-04-29 | K36: =K34 -> 28 | L36: 745 | M36: 7.07 | N36: 7.07 | O36: 7.07 | P36: 49.9849 | Q36: 2108.13312 | R36: =R34 -> 2090.211631 | S36: 110 | T36: 18.70564911 | U36: =U34 -> 18.87570046 | V36: =V34 -> 12.8 | W36: =W34 -> 147.4664099

Sheet 3
A1: 2015-04-01
A2: Лаборанты:
A3: Опрераторы:
A5: Лаборант, оператор | B5: Заказчик, адрес строительного объекта | C5: Время | D5: Дата формования | E5: Класс бетонной смеси | F5: Шифр рецепта | G5: Температура бет.смеси, ºС | H5: ОК, см | I5: Плотность бет/см в уплотненном состоянии, кг/м3 | J5: дата испытаний | K5: Возраст, сут | L5: Масса образца, г | M5: Линейные размеры образца, см | P5: Площадь, см² | Q5: Плотность образца, г/см³ | R5: Средняя плотность серии образцов, г/см³ | S5: Разрушающая нагрузка в Кн | T5: Прочность бетона, приведенная к базовому размеру образца, Мпа | U5: Средняя прочность серии образцов, Мпа | V5: Требуемая прочность, Мпа | W5: % от требуемой прочности
M7: Длина | N7: Ширина | O7: Высота
A10: 1 | B10: 2 | C10: 3 | D10: 4 | E10: 5 | F10: 6 | G10: 7 | H10: 8 | I10: 9 | J10: 10 | K10: 11 | L10: 12 | M10: 13 | P10: 14 | Q10: 15 | R10: 16 | S10: 17 | T10: 18 | U10: 19 | V10: 20 | W10: 21
A11: =INDEX(Корректировка!B3:B10,Корректировка!A3) -> Болтенкова И.Ю. | D11: =$A$1 -> 2015-04-01 | E11: В25 | F11: Б07.1.02.1-15 | G11: 18 | H11: 19 | I11: 2.338 | J11: =$A$1+$K$11 -> 2015-04-08 | K11: 7 | L11: 2348 | M11: 10 | N11: 10 | O11: 10 | P11: =M11*N11 -> 100 | Q11: =L11/(M11*N11*O11) -> 2.348 | R11: =AVERAGE(Q11:Q12) -> 2.352 | S11: 315 | T11: =((S11*10)/P11)*0.95 -> 29.925 | U11: =SUM($T$11:$T$12)/2 -> 29.3075 | V11: =VLOOKUP(E11,Корректировка!F:G,2,0) -> 32.1 | W11: =(U11*100)/V11 -> 91.30062305
A12: =A11 -> Болтенкова И.Ю. | B12: =B11 -> 0 | C12: =C11 -> 00:00:00 | D12: =D11 -> 2015-04-01 | E12: =E11 -> В25 | F12: Б07.1.02.1-15 | G12: 18 | H12: 19 | I12: 2.338 | J12: =J11 -> 2015-04-08 | K12: 7 | L12: 2356 | M12: 10 | N12: 10 | O12: 10 | P12: =M12*N12 -> 100 | Q12: =L12/(M12*N12*O12) -> 2.356 | R12: =AVERAGE(Q12:Q13) -> 2.351 | S12: 302 | T12: =((S12*10)/P12)*0.95 -> 28.69 | U12: =SUM($T$11:$T$12)/2 -> 29.3075 | V12: =V11 -> 32.1 | W12: =W11 -> 91.30062305
A13: =INDEX(Корректировка!D3:D10,Корректировка!C3) -> Масленков А.А | B13: =B11 -> 0 | C13: 00:00:00 | D13: 2015-04-01 | E13: В25 | F13: Б07.1.02.1-15 | G13: 18 | H13: 19 | I13: 2.338 | J13: =$A$1+$K$13 -> 2015-04-29 | K13: 28 | L13: 2346 | M13: 10 | N13: 10 | O13: 10 | P13: 100 | Q13: 2.346 | R13: =AVERAGE($Q$13:$Q$14) -> 2.349 | S13: 489 | T13: 46.455 | U13: =SUM($T$13:$T$14)/2 -> 47.215 | V13: =V11 -> 32.1 | W13: =(U13*100)/V13 -> 147.0872274
A14: =A13 -> Масленков А.А | B14: =B11 -> 0 | C14: 00:00:00 | D14: 2015-04-01 | E14: В25 | F14: Б07.1.02.1-15 | G14: 18 | H14: 19 | I14: 2.338 | J14: =J13 -> 2015-04-29 | K14: =K13 -> 28 | L14: 2352 | M14: 10 | N14: 10 | O14: 10 | P14: 100 | Q14: 2.352 | R14: =AVERAGE($Q$13:$Q$14) -> 2.349 | S14: 505 | T14: 47.975 | U14: =SUM($T$13:$T$14)/2 -> 47.215 | V14: =V11 -> 32.1 | W14: =W13 -> 147.0872274
A15: =A11 -> Болтенкова И.Ю. | D15: =$A$1 -> 2015-04-01 | E15: В30 | F15: Б07.1.02.1-15 | G15: 18 | H15: 19 | I15: 2.338 | J15: =$A$1+$K$15 -> 2015-04-08 | K15: 7 | L15: 2348 | M15: 10 | N15: 10 | O15: 10 | P15: =M15*N15 -> 100 | Q15: =L15/(M15*N15*O15) -> 2.348 | R15: =AVERAGE(Q15:Q16) -> 2.352 | S15: 315 | T15: =((S15*10)/P15)*0.95 -> 29.925 | U15: =SUM($T$11:$T$12)/2 -> 29.3075 | V15: =VLOOKUP(E15,Корректировка!F:G,2,0) -> 38.5 | W15: =(U15*100)/V15 -> 76.12337662
A16: Болтенкова И.Ю. | B16: =B15 -> 0 | C16: =C15 -> 00:00:00 | D16: =D15 -> 2015-04-01 | E16: =E15 -> В30 | F16: =F15 -> Б07.1.02.1-15 | G16: 18 | H16: 19 | I16: 2.338 | J16: =J15 -> 2015-04-08 | K16: =K15 -> 7 | L16: 2356 | M16: 10 | N16: 10 | O16: 10 | P16: =M16*N16 -> 100 | Q16: =L16/(M16*N16*O16) -> 2.356 | R16: =AVERAGE(Q16:Q17) -> 2.351 | S16: 302 | T16: =((S16*10)/P16)*0.95 -> 28.69 | U16: =SUM($T$11:$T$12)/2 -> 29.3075 | V16: =V15 -> 38.5 | W16: =W15 -> 76.12337662
A17: Масленков А.А | B17: =B15 -> 0 | C17: 00:00:00 | D17: 2015-04-01 | E17: В30 | F17: Б07.1.02.1-15 | G17: 18 | H17: 19 | I17: 2.338 | J17: =$A$1+$K$17 -> 2015-04-29 | K17: 28 | L17: 2346 | M17: 10 | N17: 10 | O17: 10 | P17: 100 | Q17: 2.346 | R17: =AVERAGE($Q$13:$Q$14) -> 2.349 | S17: 489 | T17: 46.455 | U17: =SUM($T$13:$T$14)/2 -> 47.215 | V17: =V15 -> 38.5 | W17: =(U17*100)/V17 -> 122.6363636
A18: Масленков А.А | B18: =B15 -> 0 | C18: 00:00:00 | D18: 2015-04-01 | E18: В30 | F18: Б07.1.02.1-15 | G18: 18 | H18: 19 | I18: 2.338 | J18: =J17 -> 2015-04-29 | K18: =K17 -> 28 | L18: 2352 | M18: 10 | N18: 10 | O18: 10 | P18: 100 | Q18: 2.352 | R18: =AVERAGE($Q$13:$Q$14) -> 2.349 | S18: 505 | T18: 47.975 | U18: =SUM($T$13:$T$14)/2 -> 47.215 | V18: =V15 -> 38.5 | W18: =W17 -> 122.6363636
A19: Болтенкова И.Ю. | D19: =$A$1 -> 2015-04-01 | E19: В7,5 | F19: Б07.1.02.1-15 | G19: 18 | H19: 19 | I19: 2.338 | J19: =$A$1+$K$19 -> 2015-04-08 | K19: 7 | L19: 2348 | M19: 10 | N19: 10 | O19: 10 | P19: =M19*N19 -> 100 | Q19: =L19/(M19*N19*O19) -> 2.348 | R19: =AVERAGE(Q19:Q20) -> 2.352 | S19: 315 | T19: =((S19*10)/P19)*0.95 -> 29.925 | U19: =SUM($T$11:$T$12)/2 -> 29.3075 | V19: =VLOOKUP(E19,Корректировка!F:G,2,0) -> 9.6 | W19: =(U19*100)/V19 -> 305.2864583
A20: Болтенкова И.Ю. | B20: =B19 -> 0 | C20: =C19 -> 00:00:00 | D20: =D19 -> 2015-04-01 | E20: =E19 -> В7,5 | F20: =F19 -> Б07.1.02.1-15 | G20: 18 | H20: 19 | I20: 2.338 | J20: =J19 -> 2015-04-08 | K20: =K19 -> 7 | L20: 2356 | M20: 10 | N20: 10 | O20: 10 | P20: =M20*N20 -> 100 | Q20: =L20/(M20*N20*O20) -> 2.356 | R20: =AVERAGE(Q20:Q21) -> 2.351 | S20: 302 | T20: =((S20*10)/P20)*0.95 -> 28.69 | U20: =SUM($T$11:$T$12)/2 -> 29.3075 | V20: =V19 -> 9.6 | W20: =W19 -> 305.2864583
A21: Масленков А.А | B21: =B19 -> 0 | C21: 00:00:00 | D21: 2015-04-01 | E21: В7,5 | F21: Б07.1.02.1-15 | G21: 18 | H21: 19 | I21: 2.338 | J21: =$A$1+$K$21 -> 2015-04-29 | K21: 28 | L21: 2346 | M21: 10 | N21: 10 | O21: 10 | P21: 100 | Q21: 2.346 | R21: =AVERAGE($Q$13:$Q$14) -> 2.349 | S21: 489 | T21: 46.455 | U21: =SUM($T$13:$T$14)/2 -> 47.215 | V21: =V19 -> 9.6 | W21: =(U21*100)/V21 -> 491.8229167
A22: Масленков А.А | B22: =B19 -> 0 | C22: 00:00:00 | D22: 2015-04-01 | E22: В7,5 | F22: Б07.1.02.1-15 | G22: 18 | H22: 19 | I22: 2.338 | J22: =J21 -> 2015-04-29 | K22: =K21 -> 28 | L22: 2352 | M22: 10 | N22: 10 | O22: 10 | P22: 100 | Q22: 2.352 | R22: =AVERAGE($Q$13:$Q$14) -> 2.349 | S22: 505 | T22: 47.975 | U22: =SUM($T$13:$T$14)/2 -> 47.215 | V22: =V19 -> 9.6 | W22: =W21 -> 491.8229167
A23: Болтенкова И.Ю. | D23: =$A$1 -> 2015-04-01 | E23: В15 | F23: Б07.1.02.1-15 | G23: 18 | H23: 19 | I23: 2.338 | J23: =$A$1+$K$15 -> 2015-04-08 | K23: 7 | L23: 2348 | M23: 10 | N23: 10 | O23: 10 | P23: =M23*N23 -> 100 | Q23: =L23/(M23*N23*O23) -> 2.348 | R23: =AVERAGE(Q23:Q24) -> 2.352 | S23: 315 | T23: =((S23*10)/P23)*0.95 -> 29.925 | U23: =SUM($T$11:$T$12)/2 -> 29.3075 | V23: =VLOOKUP(E23,Корректировка!F:G,2,0) -> 19.3 | W23: =(U23*100)/V23 -> 151.8523316
A24: Болтенкова И.Ю. | B24: =B23 -> 0 | C24: =C23 -> 00:00:00 | D24: =D23 -> 2015-04-01 | E24: =E23 -> В15 | F24: =F23 -> Б07.1.02.1-15 | G24: 18 | H24: 19 | I24: 2.338 | J24: =J23 -> 2015-04-08 | K24: =K23 -> 7 | L24: 2356 | M24: 10 | N24: 10 | O24: 10 | P24: =M24*N24 -> 100 | Q24: =L24/(M24*N24*O24) -> 2.356 | R24: =AVERAGE(Q24:Q25) -> 2.351 | S24: 302 | T24: =((S24*10)/P24)*0.95 -> 28.69 | U24: =SUM($T$11:$T$12)/2 -> 29.3075 | V24: =V23 -> 19.3 | W24: =W23 -> 151.8523316
A25: Масленков А.А | B25: =B23 -> 0 | C25: 00:00:00 | D25: 2015-04-01 | E25: В15 | F25: Б07.1.02.1-15 | G25: 18 | H25: 19 | I25: 2.338 | J25: =$A$1+$K$17 -> 2015-04-29 | K25: 28 | L25: 2346 | M25: 10 | N25: 10 | O25: 10 | P25: 100 | Q25: 2.346 | R25: =AVERAGE($Q$13:$Q$14) -> 2.349 | S25: 489 | T25: 46.455 | U25: =SUM($T$13:$T$14)/2 -> 47.215 | V25: =V23 -> 19.3 | W25: =(U25*100)/V25 -> 244.6373057
A26: Масленков А.А | B26: =B23 -> 0 | C26: 00:00:00 | D26: 2015-04-01 | E26: В15 | F26: Б07.1.02.1-15 | G26: 18 | H26: 19 | I26: 2.338 | J26: =J25 -> 2015-04-29 | K26: =K25 -> 28 | L26: 2352 | M26: 10 | N26: 10 | O26: 10 | P26: 100 | Q26: 2.352 | R26: =AVERAGE($Q$13:$Q$14) -> 2.349 | S26: 505 | T26: 47.975 | U26: =SUM($T$13:$T$14)/2 -> 47.215 | V26: =V23 -> 19.3 | W26: =W25 -> 244.6373057
A27: Болтенкова И.Ю. | D27: =$A$1 -> 2015-04-01 | E27: В22,5 | F27: Б07.1.02.1-15 | G27: 18 | H27: 19 | I27: 2.338 | J27: =$A$1+$K$19 -> 2015-04-08 | K27: 7 | L27: 2348 | M27: 10 | N27: 10 | O27: 10 | P27: =M27*N27 -> 100 | Q27: =L27/(M27*N27*O27) -> 2.348 | R27: =AVERAGE(Q27:Q28) -> 2.352 | S27: 315 | T27: =((S27*10)/P27)*0.95 -> 29.925 | U27: =SUM($T$11:$T$12)/2 -> 29.3075 | V27: =VLOOKUP(E27,Корректировка!F:G,2,0) -> 28.9 | W27: =(U27*100)/V27 -> 101.4100346
A28: Болтенкова И.Ю. | B28: =B27 -> 0 | C28: =C27 -> 00:00:00 | D28: =D27 -> 2015-04-01 | E28: =E27 -> В22,5 | F28: =F27 -> Б07.1.02.1-15 | G28: 18 | H28: 19 | I28: 2.338 | J28: =J27 -> 2015-04-08 | K28: =K27 -> 7 | L28: 2356 | M28: 10 | N28: 10 | O28: 10 | P28: =M28*N28 -> 100 | Q28: =L28/(M28*N28*O28) -> 2.356 | R28: =AVERAGE(Q28:Q29) -> 2.351 | S28: 302 | T28: =((S28*10)/P28)*0.95 -> 28.69 | U28: =SUM($T$11:$T$12)/2 -> 29.3075 | V28: =V27 -> 28.9 | W28: =W27 -> 101.4100346
A29: Масленков А.А | B29: =B27 -> 0 | C29: 00:00:00 | D29: 2015-04-01 | E29: В22,5 | F29: Б07.1.02.1-15 | G29: 18 | H29: 19 | I29: 2.338 | J29: =$A$1+$K$21 -> 2015-04-29 | K29: 28 | L29: 2346 | M29: 10 | N29: 10 | O29: 10 | P29: 100 | Q29: 2.346 | R29: =AVERAGE($Q$13:$Q$14) -> 2.349 | S29: 489 | T29: 46.455 | U29: =SUM($T$13:$T$14)/2 -> 47.215 | V29: =V27 -> 28.9 | W29: =(U29*100)/V29 -> 163.3737024
A30: Масленков А.А | B30: =B27 -> 0 | C30: 00:00:00 | D30: 2015-04-01 | E30: В22,5 | F30: Б07.1.02.1-15 | G30: 18 | H30: 19 | I30: 2.338 | J30: =J29 -> 2015-04-29 | K30: =K29 -> 28 | L30: 2352 | M30: 10 | N30: 10 | O30: 10 | P30: 100 | Q30: 2.352 | R30: =AVERAGE($Q$13:$Q$14) -> 2.349 | S30: 505 | T30: 47.975 | U30: =SUM($T$13:$T$14)/2 -> 47.215 | V30: =V27 -> 28.9 | W30: =W29 -> 163.3737024
A31: =A11 -> Болтенкова И.Ю. | D31: =A1 -> 2015-04-01 | E31: М150 | F31: Р75.02.86.-25 | G31: 12 | H31: 9 | I31: 745 | J31: =$A$1+$K$31 -> 2015-04-08 | K31: 7 | L31: 648 | M31: 7.07 | N31: 7.07 | O31: 7.07 | P31: =M31*N31 -> 49.9849 | Q31: =L31/(M31*N31*O31)*1000 -> 1833.651358 | R31: =AVERAGE(Q31:Q33) -> 1986.455638 | S31: 74 | T31: =(S31/((M31*N31/100))*0.085) -> 12.58380031 | U31: =SUM(T31:T33)/3 -> 9.522875909 | V31: =VLOOKUP(E31,Корректировка!I:J,2,0) -> 12.8 | W31: =(U31*100)/V31 -> 74.39746804
A32: =A12 -> Болтенкова И.Ю. | B32: =B31 -> 0 | C32: =C31 -> 00:00:00 | D32: =A1 -> 2015-04-01 | E32: =E31 -> М150 | F32: =F31 -> Р75.02.86.-25 | G32: =G31 -> 12 | H32: 9 | I32: 745 | J32: =J31 -> 2015-04-08 | K32: 7 | L32: 743 | M32: 7.07 | N32: 7.07 | O32: 7.07 | P32: =M32*N32 -> 49.9849 | Q32: 2102.473702 | R32: =R31 -> 1986.455638 | S32: 52 | T32: =(S32/((M32*N32/100))*0.085) -> 8.842670486 | U32: =U31 -> 9.522875909 | V32: =V31 -> 12.8 | W32: =W31 -> 74.39746804
A33: =A11 -> Болтенкова И.Ю. | B33: =B31 -> 0 | C33: =C31 -> 00:00:00 | D33: =A1 -> 2015-04-01 | E33: =E31 -> М150 | F33: =F31 -> Р75.02.86.-25 | G33: =G31 -> 12 | H33: 9 | I33: 745 | J33: =J31 -> 2015-04-08 | K33: 7 | L33: 715 | M33: 7.07 | N33: 7.07 | O33: 7.07 | P33: =M33*N33 -> 49.9849 | Q33: 2023.241854 | R33: =R31 -> 1986.455638 | S33: 42 | T33: 7.142156931 | U33: =U31 -> 9.522875909 | V33: =V31 -> 12.8 | W33: =W31 -> 74.39746804
A34: =A13 -> Масленков А.А | B34: =B31 -> 0 | C34: =C31 -> 00:00:00 | D34: =A1 -> 2015-04-01 | E34: =E31 -> М150 | F34: =F31 -> Р75.02.86.-25 | G34: =G31 -> 12 | H34: =H31 -> 9 | I34: =I31 -> 745 | J34: =$A$1+$K$34 -> 2015-04-29 | K34: 28 | L34: 834 | M34: 7.07 | N34: 7.07 | O34: 7.07 | P34: 49.9849 | Q34: 2359.977211 | R34: =AVERAGE(Q34:Q36) -> 2090.211631 | S34: 116 | T34: 19.72595724 | U34: =SUM(T34:T36)/3 -> 18.87570046 | V34: =V31 -> 12.8 | W34: =(U34*100)/V34 -> 147.4664099
A35: =A14 -> Масленков А.А | B35: =B31 -> 0 | C35: =C31 -> 00:00:00 | D35: =A1 -> 2015-04-01 | E35: =E31 -> М150 | F35: =F31 -> Р75.02.86.-25 | G35: =G31 -> 12 | H35: =H31 -> 9 | I35: =I31 -> 745 | J35: =J34 -> 2015-04-29 | K35: =K34 -> 28 | L35: 637 | M35: 7.07 | N35: 7.07 | O35: 7.07 | P35: 49.9849 | Q35: 1802.52456 | R35: =R34 -> 2090.211631 | S35: 107 | T35: 18.19549504 | U35: =U34 -> 18.87570046 | V35: =V34 -> 12.8 | W35: =W34 -> 147.4664099
A36: =A13 -> Масленков А.А | B36: =B31 -> 0 | C36: =C31 -> 00:00:00 | D36: =A1 -> 2015-04-01 | E36: =E31 -> М150 | F36: =F31 -> Р75.02.86.-25 | G36: =G31 -> 12 | H36: =H31 -> 9 | I36: =I31 -> 745 | J36: =J34 -> 2015-04-29 | K36: =K34 -> 28 | L36: 745 | M36: 7.07 | N36: 7.07 | O36: 7.07 | P36: 49.9849 | Q36: 2108.13312 | R36: =R34 -> 2090.211631 | S36: 110 | T36: 18.70564911 | U36: =U34 -> 18.87570046 | V36: =V34 -> 12.8 | W36: =W34 -> 147.4664099

Sheet 30
A1: 2015-04-01
A2: Лаборанты:
A3: Опрераторы:
A5: Лаборант, оператор | B5: Заказчик, адрес строительного объекта | C5: Время | D5: Дата формования | E5: Класс бетонной смеси | F5: Шифр рецепта | G5: Температура бет.смеси, ºС | H5: ОК, см | I5: Плотность бет/см в уплотненном состоянии, кг/м3 | J5: дата испытаний | K5: Возраст, сут | L5: Масса образца, г | M5: Линейные размеры образца, см | P5: Площадь, см² | Q5: Плотность образца, г/см³ | R5: Средняя плотность серии образцов, г/см³ | S5: Разрушающая нагрузка в Кн | T5: Прочность бетона, приведенная к базовому размеру образца, Мпа | U5: Средняя прочность серии образцов, Мпа | V5: Требуемая прочность, Мпа | W5: % от требуемой прочности
M7: Длина | N7: Ширина | O7: Высота
A10: 1 | B10: 2 | C10: 3 | D10: 4 | E10: 5 | F10: 6 | G10: 7 | H10: 8 | I10: 9 | J10: 10 | K10: 11 | L10: 12 | M10: 13 | P10: 14 | Q10: 15 | R10: 16 | S10: 17 | T10: 18 | U10: 19 | V10: 20 | W10: 21
A11: =INDEX(Корректировка!B3:B10,Корректировка!A3) -> Болтенкова И.Ю. | D11: =$A$1 -> 2015-04-01 | E11: В25 | F11: Б07.1.02.1-15 | G11: 18 | H11: 19 | I11: 2.338 | J11: =$A$1+$K$11 -> 2015-04-08 | K11: 7 | L11: 2348 | M11: 10 | N11: 10 | O11: 10 | P11: =M11*N11 -> 100 | Q11: =L11/(M11*N11*O11) -> 2.348 | R11: =AVERAGE(Q11:Q12) -> 2.352 | S11: 315 | T11: =((S11*10)/P11)*0.95 -> 29.925 | U11: =SUM($T$11:$T$12)/2 -> 29.3075 | V11: =VLOOKUP(E11,Корректировка!F:G,2,0) -> 32.1 | W11: =(U11*100)/V11 -> 91.30062305
A12: =A11 -> Болтенкова И.Ю. | B12: =B11 -> 0 | C12: =C11 -> 00:00:00 | D12: =D11 -> 2015-04-01 | E12: =E11 -> В25 | F12: Б07.1.02.1-15 | G12: 18 | H12: 19 | I12: 2.338 | J12: =J11 -> 2015-04-08 | K12: 7 | L12: 2356 | M12: 10 | N12: 10 | O12: 10 | P12: =M12*N12 -> 100 | Q12: =L12/(M12*N12*O12) -> 2.356 | R12: =AVERAGE(Q12:Q13) -> 2.351 | S12: 302 | T12: =((S12*10)/P12)*0.95 -> 28.69 | U12: =SUM($T$11:$T$12)/2 -> 29.3075 | V12: =V11 -> 32.1 | W12: =W11 -> 91.30062305
A13: =INDEX(Корректировка!D3:D10,Корректировка!C3) -> Масленков А.А | B13: =B11 -> 0 | C13: 00:00:00 | D13: 2015-04-01 | E13: В25 | F13: Б07.1.02.1-15 | G13: 18 | H13: 19 | I13: 2.338 | J13: =$A$1+$K$13 -> 2015-04-29 | K13: 28 | L13: 2346 | M13: 10 | N13: 10 | O13: 10 | P13: 100 | Q13: 2.346 | R13: =AVERAGE($Q$13:$Q$14) -> 2.349 | S13: 489 | T13: 46.455 | U13: =SUM($T$13:$T$14)/2 -> 47.215 | V13: =V11 -> 32.1 | W13: =(U13*100)/V13 -> 147.0872274
A14: =A13 -> Масленков А.А | B14: =B11 -> 0 | C14: 00:00:00 | D14: 2015-04-01 | E14: В25 | F14: Б07.1.02.1-15 | G14: 18 | H14: 19 | I14: 2.338 | J14: =J13 -> 2015-04-29 | K14: =K13 -> 28 | L14: 2352 | M14: 10 | N14: 10 | O14: 10 | P14: 100 | Q14: 2.352 | R14: =AVERAGE($Q$13:$Q$14) -> 2.349 | S14: 505 | T14: 47.975 | U14: =SUM($T$13:$T$14)/2 -> 47.215 | V14: =V11 -> 32.1 | W14: =W13 -> 147.0872274
A15: =A11 -> Болтенкова И.Ю. | D15: =$A$1 -> 2015-04-01 | E15: В30 | F15: Б07.1.02.1-15 | G15: 18 | H15: 19 | I15: 2.338 | J15: =$A$1+$K$15 -> 2015-04-08 | K15: 7 | L15: 2348 | M15: 10 | N15: 10 | O15: 10 | P15: =M15*N15 -> 100 | Q15: =L15/(M15*N15*O15) -> 2.348 | R15: =AVERAGE(Q15:Q16) -> 2.352 | S15: 315 | T15: =((S15*10)/P15)*0.95 -> 29.925 | U15: =SUM($T$11:$T$12)/2 -> 29.3075 | V15: =VLOOKUP(E15,Корректировка!F:G,2,0) -> 38.5 | W15: =(U15*100)/V15 -> 76.12337662
A16: Болтенкова И.Ю. | B16: =B15 -> 0 | C16: =C15 -> 00:00:00 | D16: =D15 -> 2015-04-01 | E16: =E15 -> В30 | F16: =F15 -> Б07.1.02.1-15 | G16: 18 | H16: 19 | I16: 2.338 | J16: =J15 -> 2015-04-08 | K16: =K15 -> 7 | L16: 2356 | M16: 10 | N16: 10 | O16: 10 | P16: =M16*N16 -> 100 | Q16: =L16/(M16*N16*O16) -> 2.356 | R16: =AVERAGE(Q16:Q17) -> 2.351 | S16: 302 | T16: =((S16*10)/P16)*0.95 -> 28.69 | U16: =SUM($T$11:$T$12)/2 -> 29.3075 | V16: =V15 -> 38.5 | W16: =W15 -> 76.12337662
A17: Масленков А.А | B17: =B15 -> 0 | C17: 00:00:00 | D17: 2015-04-01 | E17: В30 | F17: Б07.1.02.1-15 | G17: 18 | H17: 19 | I17: 2.338 | J17: =$A$1+$K$17 -> 2015-04-29 | K17: 28 | L17: 2346 | M17: 10 | N17: 10 | O17: 10 | P17: 100 | Q17: 2.346 | R17: =AVERAGE($Q$13:$Q$14) -> 2.349 | S17: 489 | T17: 46.455 | U17: =SUM($T$13:$T$14)/2 -> 47.215 | V17: =V15 -> 38.5 | W17: =(U17*100)/V17 -> 122.6363636
A18: Масленков А.А | B18: =B15 -> 0 | C18: 00:00:00 | D18: 2015-04-01 | E18: В30 | F18: Б07.1.02.1-15 | G18: 18 | H18: 19 | I18: 2.338 | J18: =J17 -> 2015-04-29 | K18: =K17 -> 28 | L18: 2352 | M18: 10 | N18: 10 | O18: 10 | P18: 100 | Q18: 2.352 | R18: =AVERAGE($Q$13:$Q$14) -> 2.349 | S18: 505 | T18: 47.975 | U18: =SUM($T$13:$T$14)/2 -> 47.215 | V18: =V15 -> 38.5 | W18: =W17 -> 122.6363636
A19: Болтенкова И.Ю. | D19: =$A$1 -> 2015-04-01 | E19: В7,5 | F19: Б07.1.02.1-15 | G19: 18 | H19: 19 | I19: 2.338 | J19: =$A$1+$K$19 -> 2015-04-08 | K19: 7 | L19: 2348 | M19: 10 | N19: 10 | O19: 10 | P19: =M19*N19 -> 100 | Q19: =L19/(M19*N19*O19) -> 2.348 | R19: =AVERAGE(Q19:Q20) -> 2.352 | S19: 315 | T19: =((S19*10)/P19)*0.95 -> 29.925 | U19: =SUM($T$11:$T$12)/2 -> 29.3075 | V19: =VLOOKUP(E19,Корректировка!F:G,2,0) -> 9.6 | W19: =(U19*100)/V19 -> 305.2864583
A20: Болтенкова И.Ю. | B20: =B19 -> 0 | C20: =C19 -> 00:00:00 | D20: =D19 -> 2015-04-01 | E20: =E19 -> В7,5 | F20: =F19 -> Б07.1.02.1-15 | G20: 18 | H20: 19 | I20: 2.338 | J20: =J19 -> 2015-04-08 | K20: =K19 -> 7 | L20: 2356 | M20: 10 | N20: 10 | O20: 10 | P20: =M20*N20 -> 100 | Q20: =L20/(M20*N20*O20) -> 2.356 | R20: =AVERAGE(Q20:Q21) -> 2.351 | S20: 302 | T20: =((S20*10)/P20)*0.95 -> 28.69 | U20: =SUM($T$11:$T$12)/2 -> 29.3075 | V20: =V19 -> 9.6 | W20: =W19 -> 305.2864583
A21: Масленков А.А | B21: =B19 -> 0 | C21: 00:00:00 | D21: 2015-04-01 | E21: В7,5 | F21: Б07.1.02.1-15 | G21: 18 | H21: 19 | I21: 2.338 | J21: =$A$1+$K$21 -> 2015-04-29 | K21: 28 | L21: 2346 | M21: 10 | N21: 10 | O21: 10 | P21: 100 | Q21: 2.346 | R21: =AVERAGE($Q$13:$Q$14) -> 2.349 | S21: 489 | T21: 46.455 | U21: =SUM($T$13:$T$14)/2 -> 47.215 | V21: =V19 -> 9.6 | W21: =(U21*100)/V21 -> 491.8229167
A22: Масленков А.А | B22: =B19 -> 0 | C22: 00:00:00 | D22: 2015-04-01 | E22: В7,5 | F22: Б07.1.02.1-15 | G22: 18 | H22: 19 | I22: 2.338 | J22: =J21 -> 2015-04-29 | K22: =K21 -> 28 | L22: 2352 | M22: 10 | N22: 10 | O22: 10 | P22: 100 | Q22: 2.352 | R22: =AVERAGE($Q$13:$Q$14) -> 2.349 | S22: 505 | T22: 47.975 | U22: =SUM($T$13:$T$14)/2 -> 47.215 | V22: =V19 -> 9.6 | W22: =W21 -> 491.8229167
A23: Болтенкова И.Ю. | D23: =$A$1 -> 2015-04-01 | E23: В15 | F23: Б07.1.02.1-15 | G23: 18 | H23: 19 | I23: 2.338 | J23: =$A$1+$K$15 -> 2015-04-08 | K23: 7 | L23: 2348 | M23: 10 | N23: 10 | O23: 10 | P23: =M23*N23 -> 100 | Q23: =L23/(M23*N23*O23) -> 2.348 | R23: =AVERAGE(Q23:Q24) -> 2.352 | S23: 315 | T23: =((S23*10)/P23)*0.95 -> 29.925 | U23: =SUM($T$11:$T$12)/2 -> 29.3075 | V23: =VLOOKUP(E23,Корректировка!F:G,2,0) -> 19.3 | W23: =(U23*100)/V23 -> 151.8523316
A24: Болтенкова И.Ю. | B24: =B23 -> 0 | C24: =C23 -> 00:00:00 | D24: =D23 -> 2015-04-01 | E24: =E23 -> В15 | F24: =F23 -> Б07.1.02.1-15 | G24: 18 | H24: 19 | I24: 2.338 | J24: =J23 -> 2015-04-08 | K24: =K23 -> 7 | L24: 2356 | M24: 10 | N24: 10 | O24: 10 | P24: =M24*N24 -> 100 | Q24: =L24/(M24*N24*O24) -> 2.356 | R24: =AVERAGE(Q24:Q25) -> 2.351 | S24: 302 | T24: =((S24*10)/P24)*0.95 -> 28.69 | U24: =SUM($T$11:$T$12)/2 -> 29.3075 | V24: =V23 -> 19.3 | W24: =W23 -> 151.8523316
A25: Масленков А.А | B25: =B23 -> 0 | C25: 00:00:00 | D25: 2015-04-01 | E25: В15 | F25: Б07.1.02.1-15 | G25: 18 | H25: 19 | I25: 2.338 | J25: =$A$1+$K$17 -> 2015-04-29 | K25: 28 | L25: 2346 | M25: 10 | N25: 10 | O25: 10 | P25: 100 | Q25: 2.346 | R25: =AVERAGE($Q$13:$Q$14) -> 2.349 | S25: 489 | T25: 46.455 | U25: =SUM($T$13:$T$14)/2 -> 47.215 | V25: =V23 -> 19.3 | W25: =(U25*100)/V25 -> 244.6373057
A26: Масленков А.А | B26: =B23 -> 0 | C26: 00:00:00 | D26: 2015-04-01 | E26: В15 | F26: Б07.1.02.1-15 | G26: 18 | H26: 19 | I26: 2.338 | J26: =J25 -> 2015-04-29 | K26: =K25 -> 28 | L26: 2352 | M26: 10 | N26: 10 | O26: 10 | P26: 100 | Q26: 2.352 | R26: =AVERAGE($Q$13:$Q$14) -> 2.349 | S26: 505 | T26: 47.975 | U26: =SUM($T$13:$T$14)/2 -> 47.215 | V26: =V23 -> 19.3 | W26: =W25 -> 244.6373057
A27: Болтенкова И.Ю. | D27: =$A$1 -> 2015-04-01 | E27: В22,5 | F27: Б07.1.02.1-15 | G27: 18 | H27: 19 | I27: 2.338 | J27: =$A$1+$K$19 -> 2015-04-08 | K27: 7 | L27: 2348 | M27: 10 | N27: 10 | O27: 10 | P27: =M27*N27 -> 100 | Q27: =L27/(M27*N27*O27) -> 2.348 | R27: =AVERAGE(Q27:Q28) -> 2.352 | S27: 315 | T27: =((S27*10)/P27)*0.95 -> 29.925 | U27: =SUM($T$11:$T$12)/2 -> 29.3075 | V27: =VLOOKUP(E27,Корректировка!F:G,2,0) -> 28.9 | W27: =(U27*100)/V27 -> 101.4100346
A28: Болтенкова И.Ю. | B28: =B27 -> 0 | C28: =C27 -> 00:00:00 | D28: =D27 -> 2015-04-01 | E28: =E27 -> В22,5 | F28: =F27 -> Б07.1.02.1-15 | G28: 18 | H28: 19 | I28: 2.338 | J28: =J27 -> 2015-04-08 | K28: =K27 -> 7 | L28: 2356 | M28: 10 | N28: 10 | O28: 10 | P28: =M28*N28 -> 100 | Q28: =L28/(M28*N28*O28) -> 2.356 | R28: =AVERAGE(Q28:Q29) -> 2.351 | S28: 302 | T28: =((S28*10)/P28)*0.95 -> 28.69 | U28: =SUM($T$11:$T$12)/2 -> 29.3075 | V28: =V27 -> 28.9 | W28: =W27 -> 101.4100346
A29: Масленков А.А | B29: =B27 -> 0 | C29: 00:00:00 | D29: 2015-04-01 | E29: В22,5 | F29: Б07.1.02.1-15 | G29: 18 | H29: 19 | I29: 2.338 | J29: =$A$1+$K$21 -> 2015-04-29 | K29: 28 | L29: 2346 | M29: 10 | N29: 10 | O29: 10 | P29: 100 | Q29: 2.346 | R29: =AVERAGE($Q$13:$Q$14) -> 2.349 | S29: 489 | T29: 46.455 | U29: =SUM($T$13:$T$14)/2 -> 47.215 | V29: =V27 -> 28.9 | W29: =(U29*100)/V29 -> 163.3737024
A30: Масленков А.А | B30: =B27 -> 0 | C30: 00:00:00 | D30: 2015-04-01 | E30: В22,5 | F30: Б07.1.02.1-15 | G30: 18 | H30: 19 | I30: 2.338 | J30: =J29 -> 2015-04-29 | K30: =K29 -> 28 | L30: 2352 | M30: 10 | N30: 10 | O30: 10 | P30: 100 | Q30: 2.352 | R30: =AVERAGE($Q$13:$Q$14) -> 2.349 | S30: 505 | T30: 47.975 | U30: =SUM($T$13:$T$14)/2 -> 47.215 | V30: =V27 -> 28.9 | W30: =W29 -> 163.3737024
A31: =A11 -> Болтенкова И.Ю. | D31: =A1 -> 2015-04-01 | E31: М150 | F31: Р75.02.86.-25 | G31: 12 | H31: 9 | I31: 745 | J31: =$A$1+$K$31 -> 2015-04-08 | K31: 7 | L31: 648 | M31: 7.07 | N31: 7.07 | O31: 7.07 | P31: =M31*N31 -> 49.9849 | Q31: =L31/(M31*N31*O31)*1000 -> 1833.651358 | R31: =AVERAGE(Q31:Q33) -> 1986.455638 | S31: 74 | T31: =(S31/((M31*N31/100))*0.085) -> 12.58380031 | U31: =SUM(T31:T33)/3 -> 9.522875909 | V31: =VLOOKUP(E31,Корректировка!I:J,2,0) -> 12.8 | W31: =(U31*100)/V31 -> 74.39746804
A32: =A12 -> Болтенкова И.Ю. | B32: =B31 -> 0 | C32: =C31 -> 00:00:00 | D32: =A1 -> 2015-04-01 | E32: =E31 -> М150 | F32: =F31 -> Р75.02.86.-25 | G32: =G31 -> 12 | H32: 9 | I32: 745 | J32: =J31 -> 2015-04-08 | K32: 7 | L32: 743 | M32: 7.07 | N32: 7.07 | O32: 7.07 | P32: =M32*N32 -> 49.9849 | Q32: 2102.473702 | R32: =R31 -> 1986.455638 | S32: 52 | T32: =(S32/((M32*N32/100))*0.085) -> 8.842670486 | U32: =U31 -> 9.522875909 | V32: =V31 -> 12.8 | W32: =W31 -> 74.39746804
A33: =A11 -> Болтенкова И.Ю. | B33: =B31 -> 0 | C33: =C31 -> 00:00:00 | D33: =A1 -> 2015-04-01 | E33: =E31 -> М150 | F33: =F31 -> Р75.02.86.-25 | G33: =G31 -> 12 | H33: 9 | I33: 745 | J33: =J31 -> 2015-04-08 | K33: 7 | L33: 715 | M33: 7.07 | N33: 7.07 | O33: 7.07 | P33: =M33*N33 -> 49.9849 | Q33: 2023.241854 | R33: =R31 -> 1986.455638 | S33: 42 | T33: 7.142156931 | U33: =U31 -> 9.522875909 | V33: =V31 -> 12.8 | W33: =W31 -> 74.39746804
A34: =A13 -> Масленков А.А | B34: =B31 -> 0 | C34: =C31 -> 00:00:00 | D34: =A1 -> 2015-04-01 | E34: =E31 -> М150 | F34: =F31 -> Р75.02.86.-25 | G34: =G31 -> 12 | H34: =H31 -> 9 | I34: =I31 -> 745 | J34: =$A$1+$K$34 -> 2015-04-29 | K34: 28 | L34: 834 | M34: 7.07 | N34: 7.07 | O34: 7.07 | P34: 49.9849 | Q34: 2359.977211 | R34: =AVERAGE(Q34:Q36) -> 2090.211631 | S34: 116 | T34: 19.72595724 | U34: =SUM(T34:T36)/3 -> 18.87570046 | V34: =V31 -> 12.8 | W34: =(U34*100)/V34 -> 147.4664099
A35: =A14 -> Масленков А.А | B35: =B31 -> 0 | C35: =C31 -> 00:00:00 | D35: =A1 -> 2015-04-01 | E35: =E31 -> М150 | F35: =F31 -> Р75.02.86.-25 | G35: =G31 -> 12 | H35: =H31 -> 9 | I35: =I31 -> 745 | J35: =J34 -> 2015-04-29 | K35: =K34 -> 28 | L35: 637 | M35: 7.07 | N35: 7.07 | O35: 7.07 | P35: 49.9849 | Q35: 1802.52456 | R35: =R34 -> 2090.211631 | S35: 107 | T35: 18.19549504 | U35: =U34 -> 18.87570046 | V35: =V34 -> 12.8 | W35: =W34 -> 147.4664099
A36: =A13 -> Масленков А.А | B36: =B31 -> 0 | C36: =C31 -> 00:00:00 | D36: =A1 -> 2015-04-01 | E36: =E31 -> М150 | F36: =F31 -> Р75.02.86.-25 | G36: =G31 -> 12 | H36: =H31 -> 9 | I36: =I31 -> 745 | J36: =J34 -> 2015-04-29 | K36: =K34 -> 28 | L36: 745 | M36: 7.07 | N36: 7.07 | O36: 7.07 | P36: 49.9849 | Q36: 2108.13312 | R36: =R34 -> 2090.211631 | S36: 110 | T36: 18.70564911 | U36: =U34 -> 18.87570046 | V36: =V34 -> 12.8 | W36: =W34 -> 147.4664099

Sheet 31
A1: 2015-04-01
A2: Лаборанты:
A3: Опрераторы:
A5: Лаборант, оператор | B5: Заказчик, адрес строительного объекта | C5: Время | D5: Дата формования | E5: Класс бетонной смеси | F5: Шифр рецепта | G5: Температура бет.смеси, ºС | H5: ОК, см | I5: Плотность бет/см в уплотненном состоянии, кг/м3 | J5: дата испытаний | K5: Возраст, сут | L5: Масса образца, г | M5: Линейные размеры образца, см | P5: Площадь, см² | Q5: Плотность образца, г/см³ | R5: Средняя плотность серии образцов, г/см³ | S5: Разрушающая нагрузка в Кн | T5: Прочность бетона, приведенная к базовому размеру образца, Мпа | U5: Средняя прочность серии образцов, Мпа | V5: Требуемая прочность, Мпа | W5: % от требуемой прочности
M7: Длина | N7: Ширина | O7: Высота
A10: 1 | B10: 2 | C10: 3 | D10: 4 | E10: 5 | F10: 6 | G10: 7 | H10: 8 | I10: 9 | J10: 10 | K10: 11 | L10: 12 | M10: 13 | P10: 14 | Q10: 15 | R10: 16 | S10: 17 | T10: 18 | U10: 19 | V10: 20 | W10: 21
A11: =INDEX(Корректировка!B3:B10,Корректировка!A3) -> Болтенкова И.Ю. | D11: =$A$1 -> 2015-04-01 | E11: В25 | F11: Б07.1.02.1-15 | G11: 18 | H11: 19 | I11: 2.338 | J11: =$A$1+$K$11 -> 2015-04-08 | K11: 7 | L11: 2348 | M11: 10 | N11: 10 | O11: 10 | P11: =M11*N11 -> 100 | Q11: =L11/(M11*N11*O11) -> 2.348 | R11: =AVERAGE(Q11:Q12) -> 2.352 | S11: 315 | T11: =((S11*10)/P11)*0.95 -> 29.925 | U11: =SUM($T$11:$T$12)/2 -> 29.3075 | V11: =VLOOKUP(E11,Корректировка!F:G,2,0) -> 32.1 | W11: =(U11*100)/V11 -> 91.30062305
A12: =A11 -> Болтенкова И.Ю. | B12: =B11 -> 0 | C12: =C11 -> 00:00:00 | D12: =D11 -> 2015-04-01 | E12: =E11 -> В25 | F12: Б07.1.02.1-15 | G12: 18 | H12: 19 | I12: 2.338 | J12: =J11 -> 2015-04-08 | K12: 7 | L12: 2356 | M12: 10 | N12: 10 | O12: 10 | P12: =M12*N12 -> 100 | Q12: =L12/(M12*N12*O12) -> 2.356 | R12: =AVERAGE(Q12:Q13) -> 2.351 | S12: 302 | T12: =((S12*10)/P12)*0.95 -> 28.69 | U12: =SUM($T$11:$T$12)/2 -> 29.3075 | V12: =V11 -> 32.1 | W12: =W11 -> 91.30062305
A13: =INDEX(Корректировка!D3:D10,Корректировка!C3) -> Масленков А.А | B13: =B11 -> 0 | C13: 00:00:00 | D13: 2015-04-01 | E13: В25 | F13: Б07.1.02.1-15 | G13: 18 | H13: 19 | I13: 2.338 | J13: =$A$1+$K$13 -> 2015-04-29 | K13: 28 | L13: 2346 | M13: 10 | N13: 10 | O13: 10 | P13: 100 | Q13: 2.346 | R13: =AVERAGE($Q$13:$Q$14) -> 2.349 | S13: 489 | T13: 46.455 | U13: =SUM($T$13:$T$14)/2 -> 47.215 | V13: =V11 -> 32.1 | W13: =(U13*100)/V13 -> 147.0872274
A14: =A13 -> Масленков А.А | B14: =B11 -> 0 | C14: 00:00:00 | D14: 2015-04-01 | E14: В25 | F14: Б07.1.02.1-15 | G14: 18 | H14: 19 | I14: 2.338 | J14: =J13 -> 2015-04-29 | K14: =K13 -> 28 | L14: 2352 | M14: 10 | N14: 10 | O14: 10 | P14: 100 | Q14: 2.352 | R14: =AVERAGE($Q$13:$Q$14) -> 2.349 | S14: 505 | T14: 47.975 | U14: =SUM($T$13:$T$14)/2 -> 47.215 | V14: =V11 -> 32.1 | W14: =W13 -> 147.0872274
A15: =A11 -> Болтенкова И.Ю. | D15: =$A$1 -> 2015-04-01 | E15: В30 | F15: Б07.1.02.1-15 | G15: 18 | H15: 19 | I15: 2.338 | J15: =$A$1+$K$15 -> 2015-04-08 | K15: 7 | L15: 2348 | M15: 10 | N15: 10 | O15: 10 | P15: =M15*N15 -> 100 | Q15: =L15/(M15*N15*O15) -> 2.348 | R15: =AVERAGE(Q15:Q16) -> 2.352 | S15: 315 | T15: =((S15*10)/P15)*0.95 -> 29.925 | U15: =SUM($T$11:$T$12)/2 -> 29.3075 | V15: =VLOOKUP(E15,Корректировка!F:G,2,0) -> 38.5 | W15: =(U15*100)/V15 -> 76.12337662
A16: Болтенкова И.Ю. | B16: =B15 -> 0 | C16: =C15 -> 00:00:00 | D16: =D15 -> 2015-04-01 | E16: =E15 -> В30 | F16: =F15 -> Б07.1.02.1-15 | G16: 18 | H16: 19 | I16: 2.338 | J16: =J15 -> 2015-04-08 | K16: =K15 -> 7 | L16: 2356 | M16: 10 | N16: 10 | O16: 10 | P16: =M16*N16 -> 100 | Q16: =L16/(M16*N16*O16) -> 2.356 | R16: =AVERAGE(Q16:Q17) -> 2.351 | S16: 302 | T16: =((S16*10)/P16)*0.95 -> 28.69 | U16: =SUM($T$11:$T$12)/2 -> 29.3075 | V16: =V15 -> 38.5 | W16: =W15 -> 76.12337662
A17: Масленков А.А | B17: =B15 -> 0 | C17: 00:00:00 | D17: 2015-04-01 | E17: В30 | F17: Б07.1.02.1-15 | G17: 18 | H17: 19 | I17: 2.338 | J17: =$A$1+$K$17 -> 2015-04-29 | K17: 28 | L17: 2346 | M17: 10 | N17: 10 | O17: 10 | P17: 100 | Q17: 2.346 | R17: =AVERAGE($Q$13:$Q$14) -> 2.349 | S17: 489 | T17: 46.455 | U17: =SUM($T$13:$T$14)/2 -> 47.215 | V17: =V15 -> 38.5 | W17: =(U17*100)/V17 -> 122.6363636
A18: Масленков А.А | B18: =B15 -> 0 | C18: 00:00:00 | D18: 2015-04-01 | E18: В30 | F18: Б07.1.02.1-15 | G18: 18 | H18: 19 | I18: 2.338 | J18: =J17 -> 2015-04-29 | K18: =K17 -> 28 | L18: 2352 | M18: 10 | N18: 10 | O18: 10 | P18: 100 | Q18: 2.352 | R18: =AVERAGE($Q$13:$Q$14) -> 2.349 | S18: 505 | T18: 47.975 | U18: =SUM($T$13:$T$14)/2 -> 47.215 | V18: =V15 -> 38.5 | W18: =W17 -> 122.6363636
A19: Болтенкова И.Ю. | D19: =$A$1 -> 2015-04-01 | E19: В7,5 | F19: Б07.1.02.1-15 | G19: 18 | H19: 19 | I19: 2.338 | J19: =$A$1+$K$19 -> 2015-04-08 | K19: 7 | L19: 2348 | M19: 10 | N19: 10 | O19: 10 | P19: =M19*N19 -> 100 | Q19: =L19/(M19*N19*O19) -> 2.348 | R19: =AVERAGE(Q19:Q20) -> 2.352 | S19: 315 | T19: =((S19*10)/P19)*0.95 -> 29.925 | U19: =SUM($T$11:$T$12)/2 -> 29.3075 | V19: =VLOOKUP(E19,Корректировка!F:G,2,0) -> 9.6 | W19: =(U19*100)/V19 -> 305.2864583
A20: Болтенкова И.Ю. | B20: =B19 -> 0 | C20: =C19 -> 00:00:00 | D20: =D19 -> 2015-04-01 | E20: =E19 -> В7,5 | F20: =F19 -> Б07.1.02.1-15 | G20: 18 | H20: 19 | I20: 2.338 | J20: =J19 -> 2015-04-08 | K20: =K19 -> 7 | L20: 2356 | M20: 10 | N20: 10 | O20: 10 | P20: =M20*N20 -> 100 | Q20: =L20/(M20*N20*O20) -> 2.356 | R20: =AVERAGE(Q20:Q21) -> 2.351 | S20: 302 | T20: =((S20*10)/P20)*0.95 -> 28.69 | U20: =SUM($T$11:$T$12)/2 -> 29.3075 | V20: =V19 -> 9.6 | W20: =W19 -> 305.2864583
A21: Масленков А.А | B21: =B19 -> 0 | C21: 00:00:00 | D21: 2015-04-01 | E21: В7,5 | F21: Б07.1.02.1-15 | G21: 18 | H21: 19 | I21: 2.338 | J21: =$A$1+$K$21 -> 2015-04-29 | K21: 28 | L21: 2346 | M21: 10 | N21: 10 | O21: 10 | P21: 100 | Q21: 2.346 | R21: =AVERAGE($Q$13:$Q$14) -> 2.349 | S21: 489 | T21: 46.455 | U21: =SUM($T$13:$T$14)/2 -> 47.215 | V21: =V19 -> 9.6 | W21: =(U21*100)/V21 -> 491.8229167
A22: Масленков А.А | B22: =B19 -> 0 | C22: 00:00:00 | D22: 2015-04-01 | E22: В7,5 | F22: Б07.1.02.1-15 | G22: 18 | H22: 19 | I22: 2.338 | J22: =J21 -> 2015-04-29 | K22: =K21 -> 28 | L22: 2352 | M22: 10 | N22: 10 | O22: 10 | P22: 100 | Q22: 2.352 | R22: =AVERAGE($Q$13:$Q$14) -> 2.349 | S22: 505 | T22: 47.975 | U22: =SUM($T$13:$T$14)/2 -> 47.215 | V22: =V19 -> 9.6 | W22: =W21 -> 491.8229167
A23: Болтенкова И.Ю. | D23: =$A$1 -> 2015-04-01 | E23: В15 | F23: Б07.1.02.1-15 | G23: 18 | H23: 19 | I23: 2.338 | J23: =$A$1+$K$15 -> 2015-04-08 | K23: 7 | L23: 2348 | M23: 10 | N23: 10 | O23: 10 | P23: =M23*N23 -> 100 | Q23: =L23/(M23*N23*O23) -> 2.348 | R23: =AVERAGE(Q23:Q24) -> 2.352 | S23: 315 | T23: =((S23*10)/P23)*0.95 -> 29.925 | U23: =SUM($T$11:$T$12)/2 -> 29.3075 | V23: =VLOOKUP(E23,Корректировка!F:G,2,0) -> 19.3 | W23: =(U23*100)/V23 -> 151.8523316
A24: Болтенкова И.Ю. | B24: =B23 -> 0 | C24: =C23 -> 00:00:00 | D24: =D23 -> 2015-04-01 | E24: =E23 -> В15 | F24: =F23 -> Б07.1.02.1-15 | G24: 18 | H24: 19 | I24: 2.338 | J24: =J23 -> 2015-04-08 | K24: =K23 -> 7 | L24: 2356 | M24: 10 | N24: 10 | O24: 10 | P24: =M24*N24 -> 100 | Q24: =L24/(M24*N24*O24) -> 2.356 | R24: =AVERAGE(Q24:Q25) -> 2.351 | S24: 302 | T24: =((S24*10)/P24)*0.95 -> 28.69 | U24: =SUM($T$11:$T$12)/2 -> 29.3075 | V24: =V23 -> 19.3 | W24: =W23 -> 151.8523316
A25: Масленков А.А | B25: =B23 -> 0 | C25: 00:00:00 | D25: 2015-04-01 | E25: В15 | F25: Б07.1.02.1-15 | G25: 18 | H25: 19 | I25: 2.338 | J25: =$A$1+$K$17 -> 2015-04-29 | K25: 28 | L25: 2346 | M25: 10 | N25: 10 | O25: 10 | P25: 100 | Q25: 2.346 | R25: =AVERAGE($Q$13:$Q$14) -> 2.349 | S25: 489 | T25: 46.455 | U25: =SUM($T$13:$T$14)/2 -> 47.215 | V25: =V23 -> 19.3 | W25: =(U25*100)/V25 -> 244.6373057
A26: Масленков А.А | B26: =B23 -> 0 | C26: 00:00:00 | D26: 2015-04-01 | E26: В15 | F26: Б07.1.02.1-15 | G26: 18 | H26: 19 | I26: 2.338 | J26: =J25 -> 2015-04-29 | K26: =K25 -> 28 | L26: 2352 | M26: 10 | N26: 10 | O26: 10 | P26: 100 | Q26: 2.352 | R26: =AVERAGE($Q$13:$Q$14) -> 2.349 | S26: 505 | T26: 47.975 | U26: =SUM($T$13:$T$14)/2 -> 47.215 | V26: =V23 -> 19.3 | W26: =W25 -> 244.6373057
A27: Болтенкова И.Ю. | D27: =$A$1 -> 2015-04-01 | E27: В22,5 | F27: Б07.1.02.1-15 | G27: 18 | H27: 19 | I27: 2.338 | J27: =$A$1+$K$19 -> 2015-04-08 | K27: 7 | L27: 2348 | M27: 10 | N27: 10 | O27: 10 | P27: =M27*N27 -> 100 | Q27: =L27/(M27*N27*O27) -> 2.348 | R27: =AVERAGE(Q27:Q28) -> 2.352 | S27: 315 | T27: =((S27*10)/P27)*0.95 -> 29.925 | U27: =SUM($T$11:$T$12)/2 -> 29.3075 | V27: =VLOOKUP(E27,Корректировка!F:G,2,0) -> 28.9 | W27: =(U27*100)/V27 -> 101.4100346
A28: Болтенкова И.Ю. | B28: =B27 -> 0 | C28: =C27 -> 00:00:00 | D28: =D27 -> 2015-04-01 | E28: =E27 -> В22,5 | F28: =F27 -> Б07.1.02.1-15 | G28: 18 | H28: 19 | I28: 2.338 | J28: =J27 -> 2015-04-08 | K28: =K27 -> 7 | L28: 2356 | M28: 10 | N28: 10 | O28: 10 | P28: =M28*N28 -> 100 | Q28: =L28/(M28*N28*O28) -> 2.356 | R28: =AVERAGE(Q28:Q29) -> 2.351 | S28: 302 | T28: =((S28*10)/P28)*0.95 -> 28.69 | U28: =SUM($T$11:$T$12)/2 -> 29.3075 | V28: =V27 -> 28.9 | W28: =W27 -> 101.4100346
A29: Масленков А.А | B29: =B27 -> 0 | C29: 00:00:00 | D29: 2015-04-01 | E29: В22,5 | F29: Б07.1.02.1-15 | G29: 18 | H29: 19 | I29: 2.338 | J29: =$A$1+$K$21 -> 2015-04-29 | K29: 28 | L29: 2346 | M29: 10 | N29: 10 | O29: 10 | P29: 100 | Q29: 2.346 | R29: =AVERAGE($Q$13:$Q$14) -> 2.349 | S29: 489 | T29: 46.455 | U29: =SUM($T$13:$T$14)/2 -> 47.215 | V29: =V27 -> 28.9 | W29: =(U29*100)/V29 -> 163.3737024
A30: Масленков А.А | B30: =B27 -> 0 | C30: 00:00:00 | D30: 2015-04-01 | E30: В22,5 | F30: Б07.1.02.1-15 | G30: 18 | H30: 19 | I30: 2.338 | J30: =J29 -> 2015-04-29 | K30: =K29 -> 28 | L30: 2352 | M30: 10 | N30: 10 | O30: 10 | P30: 100 | Q30: 2.352 | R30: =AVERAGE($Q$13:$Q$14) -> 2.349 | S30: 505 | T30: 47.975 | U30: =SUM($T$13:$T$14)/2 -> 47.215 | V30: =V27 -> 28.9 | W30: =W29 -> 163.3737024
A31: =A11 -> Болтенкова И.Ю. | D31: =A1 -> 2015-04-01 | E31: М150 | F31: Р75.02.86.-25 | G31: 12 | H31: 9 | I31: 745 | J31: =$A$1+$K$31 -> 2015-04-08 | K31: 7 | L31: 648 | M31: 7.07 | N31: 7.07 | O31: 7.07 | P31: =M31*N31 -> 49.9849 | Q31: =L31/(M31*N31*O31)*1000 -> 1833.651358 | R31: =AVERAGE(Q31:Q33) -> 1986.455638 | S31: 74 | T31: =(S31/((M31*N31/100))*0.085) -> 12.58380031 | U31: =SUM(T31:T33)/3 -> 9.522875909 | V31: =VLOOKUP(E31,Корректировка!I:J,2,0) -> 12.8 | W31: =(U31*100)/V31 -> 74.39746804
A32: =A12 -> Болтенкова И.Ю. | B32: =B31 -> 0 | C32: =C31 -> 00:00:00 | D32: =A1 -> 2015-04-01 | E32: =E31 -> М150 | F32: =F31 -> Р75.02.86.-25 | G32: =G31 -> 12 | H32: 9 | I32: 745 | J32: =J31 -> 2015-04-08 | K32: 7 | L32: 743 | M32: 7.07 | N32: 7.07 | O32: 7.07 | P32: =M32*N32 -> 49.9849 | Q32: 2102.473702 | R32: =R31 -> 1986.455638 | S32: 52 | T32: =(S32/((M32*N32/100))*0.085) -> 8.842670486 | U32: =U31 -> 9.522875909 | V32: =V31 -> 12.8 | W32: =W31 -> 74.39746804
A33: =A11 -> Болтенкова И.Ю. | B33: =B31 -> 0 | C33: =C31 -> 00:00:00 | D33: =A1 -> 2015-04-01 | E33: =E31 -> М150 | F33: =F31 -> Р75.02.86.-25 | G33: =G31 -> 12 | H33: 9 | I33: 745 | J33: =J31 -> 2015-04-08 | K33: 7 | L33: 715 | M33: 7.07 | N33: 7.07 | O33: 7.07 | P33: =M33*N33 -> 49.9849 | Q33: 2023.241854 | R33: =R31 -> 1986.455638 | S33: 42 | T33: 7.142156931 | U33: =U31 -> 9.522875909 | V33: =V31 -> 12.8 | W33: =W31 -> 74.39746804
A34: =A13 -> Масленков А.А | B34: =B31 -> 0 | C34: =C31 -> 00:00:00 | D34: =A1 -> 2015-04-01 | E34: =E31 -> М150 | F34: =F31 -> Р75.02.86.-25 | G34: =G31 -> 12 | H34: =H31 -> 9 | I34: =I31 -> 745 | J34: =$A$1+$K$34 -> 2015-04-29 | K34: 28 | L34: 834 | M34: 7.07 | N34: 7.07 | O34: 7.07 | P34: 49.9849 | Q34: 2359.977211 | R34: =AVERAGE(Q34:Q36) -> 2090.211631 | S34: 116 | T34: 19.72595724 | U34: =SUM(T34:T36)/3 -> 18.87570046 | V34: =V31 -> 12.8 | W34: =(U34*100)/V34 -> 147.4664099
A35: =A14 -> Масленков А.А | B35: =B31 -> 0 | C35: =C31 -> 00:00:00 | D35: =A1 -> 2015-04-01 | E35: =E31 -> М150 | F35: =F31 -> Р75.02.86.-25 | G35: =G31 -> 12 | H35: =H31 -> 9 | I35: =I31 -> 745 | J35: =J34 -> 2015-04-29 | K35: =K34 -> 28 | L35: 637 | M35: 7.07 | N35: 7.07 | O35: 7.07 | P35: 49.9849 | Q35: 1802.52456 | R35: =R34 -> 2090.211631 | S35: 107 | T35: 18.19549504 | U35: =U34 -> 18.87570046 | V35: =V34 -> 12.8 | W35: =W34 -> 147.4664099
A36: =A13 -> Масленков А.А | B36: =B31 -> 0 | C36: =C31 -> 00:00:00 | D36: =A1 -> 2015-04-01 | E36: =E31 -> М150 | F36: =F31 -> Р75.02.86.-25 | G36: =G31 -> 12 | H36: =H31 -> 9 | I36: =I31 -> 745 | J36: =J34 -> 2015-04-29 | K36: =K34 -> 28 | L36: 745 | M36: 7.07 | N36: 7.07 | O36: 7.07 | P36: 49.9849 | Q36: 2108.13312 | R36: =R34 -> 2090.211631 | S36: 110 | T36: 18.70564911 | U36: =U34 -> 18.87570046 | V36: =V34 -> 12.8 | W36: =W34 -> 147.4664099

Sheet В5
A1: В15
A2: Дата формования | B2: Класс бетонной смеси | C2: Шифр рецепта | D2: Температура бет.смеси, ºС | E2: ОК, см | F2: Плотность бет/см в уплотненном состоянии, кг/м3 | G2: дата испытаний | H2: Возраст, сут | I2: Масса образца, г | J2: Линейные размеры образца, см | M2: Площадь, см² | N2: Плотность образца, г/см³ | O2: Средняя плотность серии образцов, г/см³ | P2: Разрушающая нагрузка в Кн | Q2: Прочность бетона, приведенная к базовому размеру образца, Мпа | R2: Средняя прочность серии образцов, Мпа | S2: Требуемая прочность, Мпа | T2: % от требуемой прочности
J4: Длина | K4: Ширина | L4: Высота
A7: 4 | B7: 5 | C7: 6 | D7: 7 | E7: 8 | F7: 9 | G7: 10 | H7: 11 | I7: 12 | J7: 13 | M7: 14 | N7: 15 | O7: 16 | P7: 17 | Q7: 18 | R7: 19 | S7: 20 | T7: 21
A8: 2015-04-01 | B8: В15 | C8: Б07.1.02.1-15 | D8: 18 | E8: 19 | F8: 2.338 | G8: 2015-04-08 | H8: 7 | I8: 2348 | J8: 10 | K8: 10 | L8: 10 | M8: 100 | N8: 2.348 | O8: 2.352 | P8: 315 | Q8: 29.925 | R8: 29.3075 | S8: 19.3 | T8: 151.8523316
A9: 2015-04-01 | B9: В15 | C9: Б07.1.02.1-15 | D9: 18 | E9: 19 | F9: 2.338 | G9: 2015-04-08 | H9: 7 | I9: 2356 | J9: 10 | K9: 10 | L9: 10 | M9: 100 | N9: 2.356 | O9: 2.351 | P9: 302 | Q9: 28.69 | R9: 29.3075 | S9: 19.3 | T9: 151.8523316
A10: 2015-04-01 | B10: В15 | C10: Б07.1.02.1-15 | D10: 18 | E10: 19 | F10: 2.338 | G10: 2015-04-29 | H10: 28 | I10: 2346 | J10: 10 | K10: 10 | L10: 10 | M10: 100 | N10: 2.346 | O10: 2.349 | P10: 489 | Q10: 46.455 | R10: 47.215 | S10: 19.3 | T10: 244.6373057
A11: 2015-04-01 | B11: В15 | C11: Б07.1.02.1-15 | D11: 18 | E11: 19 | F11: 2.338 | G11: 2015-04-29 | H11: 28 | I11: 2352 | J11: 10 | K11: 10 | L11: 10 | M11: 100 | N11: 2.352 | O11: 2.349 | P11: 505 | Q11: 47.975 | R11: 47.215 | S11: 19.3 | T11: 244.6373057
A12: 2015-04-01 | B12: В15 | C12: Б07.1.02.1-15 | D12: 18 | E12: 19 | F12: 2.338 | G12: 2015-04-08 | H12: 7 | I12: 2348 | J12: 10 | K12: 10 | L12: 10 | M12: 100 | N12: 2.348 | O12: 2.352 | P12: 315 | Q12: 29.925 | R12: 29.3075 | S12: 19.3 | T12: 151.8523316
A13: 2015-04-01 | B13: В15 | C13: Б07.1.02.1-15 | D13: 18 | E13: 19 | F13: 2.338 | G13: 2015-04-08 | H13: 7 | I13: 2356 | J13: 10 | K13: 10 | L13: 10 | M13: 100 | N13: 2.356 | O13: 2.351 | P13: 302 | Q13: 28.69 | R13: 29.3075 | S13: 19.3 | T13: 151.8523316
A14: 2015-04-01 | B14: В15 | C14: Б07.1.02.1-15 | D14: 18 | E14: 19 | F14: 2.338 | G14: 2015-04-29 | H14: 28 | I14: 2346 | J14: 10 | K14: 10 | L14: 10 | M14: 100 | N14: 2.346 | O14: 2.349 | P14: 489 | Q14: 46.455 | R14: 47.215 | S14: 19.3 | T14: 244.6373057
A15: 2015-04-01 | B15: В15 | C15: Б07.1.02.1-15 | D15: 18 | E15: 19 | F15: 2.338 | G15: 2015-04-29 | H15: 28 | I15: 2352 | J15: 10 | K15: 10 | L15: 10 | M15: 100 | N15: 2.352 | O15: 2.349 | P15: 505 | Q15: 47.975 | R15: 47.215 | S15: 19.3 | T15: 244.6373057

Sheet В7,5
A1: В15
A2: Дата формования | B2: Класс бетонной смеси | C2: Шифр рецепта | D2: Температура бет.смеси, ºС | E2: ОК, см | F2: Плотность бет/см в уплотненном состоянии, кг/м3 | G2: дата испытаний | H2: Возраст, сут | I2: Масса образца, г | J2: Линейные размеры образца, см | M2: Площадь, см² | N2: Плотность образца, г/см³ | O2: Средняя плотность серии образцов, г/см³ | P2: Разрушающая нагрузка в Кн | Q2: Прочность бетона, приведенная к базовому размеру образца, Мпа | R2: Средняя прочность серии образцов, Мпа | S2: Требуемая прочность, Мпа | T2: % от требуемой прочности
J4: Длина | K4: Ширина | L4: Высота
A7: 4 | B7: 5 | C7: 6 | D7: 7 | E7: 8 | F7: 9 | G7: 10 | H7: 11 | I7: 12 | J7: 13 | M7: 14 | N7: 15 | O7: 16 | P7: 17 | Q7: 18 | R7: 19 | S7: 20 | T7: 21
A8: 2015-04-01 | B8: В15 | C8: Б07.1.02.1-15 | D8: 18 | E8: 19 | F8: 2.338 | G8: 2015-04-08 | H8: 7 | I8: 2348 | J8: 10 | K8: 10 | L8: 10 | M8: 100 | N8: 2.348 | O8: 2.352 | P8: 315 | Q8: 29.925 | R8: 29.3075 | S8: 19.3 | T8: 151.8523316
A9: 2015-04-01 | B9: В15 | C9: Б07.1.02.1-15 | D9: 18 | E9: 19 | F9: 2.338 | G9: 2015-04-08 | H9: 7 | I9: 2356 | J9: 10 | K9: 10 | L9: 10 | M9: 100 | N9: 2.356 | O9: 2.351 | P9: 302 | Q9: 28.69 | R9: 29.3075 | S9: 19.3 | T9: 151.8523316
A10: 2015-04-01 | B10: В15 | C10: Б07.1.02.1-15 | D10: 18 | E10: 19 | F10: 2.338 | G10: 2015-04-29 | H10: 28 | I10: 2346 | J10: 10 | K10: 10 | L10: 10 | M10: 100 | N10: 2.346 | O10: 2.349 | P10: 489 | Q10: 46.455 | R10: 47.215 | S10: 19.3 | T10: 244.6373057
A11: 2015-04-01 | B11: В15 | C11: Б07.1.02.1-15 | D11: 18 | E11: 19 | F11: 2.338 | G11: 2015-04-29 | H11: 28 | I11: 2352 | J11: 10 | K11: 10 | L11: 10 | M11: 100 | N11: 2.352 | O11: 2.349 | P11: 505 | Q11: 47.975 | R11: 47.215 | S11: 19.3 | T11: 244.6373057
A12: 2015-04-01 | B12: В15 | C12: Б07.1.02.1-15 | D12: 18 | E12: 19 | F12: 2.338 | G12: 2015-04-08 | H12: 7 | I12: 2348 | J12: 10 | K12: 10 | L12: 10 | M12: 100 | N12: 2.348 | O12: 2.352 | P12: 315 | Q12: 29.925 | R12: 29.3075 | S12: 19.3 | T12: 151.8523316
A13: 2015-04-01 | B13: В15 | C13: Б07.1.02.1-15 | D13: 18 | E13: 19 | F13: 2.338 | G13: 2015-04-08 | H13: 7 | I13: 2356 | J13: 10 | K13: 10 | L13: 10 | M13: 100 | N13: 2.356 | O13: 2.351 | P13: 302 | Q13: 28.69 | R13: 29.3075 | S13: 19.3 | T13: 151.8523316
A14: 2015-04-01 | B14: В15 | C14: Б07.1.02.1-15 | D14: 18 | E14: 19 | F14: 2.338 | G14: 2015-04-29 | H14: 28 | I14: 2346 | J14: 10 | K14: 10 | L14: 10 | M14: 100 | N14: 2.346 | O14: 2.349 | P14: 489 | Q14: 46.455 | R14: 47.215 | S14: 19.3 | T14: 244.6373057
A15: 2015-04-01 | B15: В15 | C15: Б07.1.02.1-15 | D15: 18 | E15: 19 | F15: 2.338 | G15: 2015-04-29 | H15: 28 | I15: 2352 | J15: 10 | K15: 10 | L15: 10 | M15: 100 | N15: 2.352 | O15: 2.349 | P15: 505 | Q15: 47.975 | R15: 47.215 | S15: 19.3 | T15: 244.6373057

Sheet В10
A1: В15
A2: Дата формования | B2: Класс бетонной смеси | C2: Шифр рецепта | D2: Температура бет.смеси, ºС | E2: ОК, см | F2: Плотность бет/см в уплотненном состоянии, кг/м3 | G2: дата испытаний | H2: Возраст, сут | I2: Масса образца, г | J2: Линейные размеры образца, см | M2: Площадь, см² | N2: Плотность образца, г/см³ | O2: Средняя плотность серии образцов, г/см³ | P2: Разрушающая нагрузка в Кн | Q2: Прочность бетона, приведенная к базовому размеру образца, Мпа | R2: Средняя прочность серии образцов, Мпа | S2: Требуемая прочность, Мпа | T2: % от требуемой прочности
J4: Длина | K4: Ширина | L4: Высота
A7: 4 | B7: 5 | C7: 6 | D7: 7 | E7: 8 | F7: 9 | G7: 10 | H7: 11 | I7: 12 | J7: 13 | M7: 14 | N7: 15 | O7: 16 | P7: 17 | Q7: 18 | R7: 19 | S7: 20 | T7: 21
A8: 2015-04-01 | B8: В15 | C8: Б07.1.02.1-15 | D8: 18 | E8: 19 | F8: 2.338 | G8: 2015-04-08 | H8: 7 | I8: 2348 | J8: 10 | K8: 10 | L8: 10 | M8: 100 | N8: 2.348 | O8: 2.352 | P8: 315 | Q8: 29.925 | R8: 29.3075 | S8: 19.3 | T8: 151.8523316
A9: 2015-04-01 | B9: В15 | C9: Б07.1.02.1-15 | D9: 18 | E9: 19 | F9: 2.338 | G9: 2015-04-08 | H9: 7 | I9: 2356 | J9: 10 | K9: 10 | L9: 10 | M9: 100 | N9: 2.356 | O9: 2.351 | P9: 302 | Q9: 28.69 | R9: 29.3075 | S9: 19.3 | T9: 151.8523316
A10: 2015-04-01 | B10: В15 | C10: Б07.1.02.1-15 | D10: 18 | E10: 19 | F10: 2.338 | G10: 2015-04-29 | H10: 28 | I10: 2346 | J10: 10 | K10: 10 | L10: 10 | M10: 100 | N10: 2.346 | O10: 2.349 | P10: 489 | Q10: 46.455 | R10: 47.215 | S10: 19.3 | T10: 244.6373057
A11: 2015-04-01 | B11: В15 | C11: Б07.1.02.1-15 | D11: 18 | E11: 19 | F11: 2.338 | G11: 2015-04-29 | H11: 28 | I11: 2352 | J11: 10 | K11: 10 | L11: 10 | M11: 100 | N11: 2.352 | O11: 2.349 | P11: 505 | Q11: 47.975 | R11: 47.215 | S11: 19.3 | T11: 244.6373057
A12: 2015-04-01 | B12: В15 | C12: Б07.1.02.1-15 | D12: 18 | E12: 19 | F12: 2.338 | G12: 2015-04-08 | H12: 7 | I12: 2348 | J12: 10 | K12: 10 | L12: 10 | M12: 100 | N12: 2.348 | O12: 2.352 | P12: 315 | Q12: 29.925 | R12: 29.3075 | S12: 19.3 | T12: 151.8523316
A13: 2015-04-01 | B13: В15 | C13: Б07.1.02.1-15 | D13: 18 | E13: 19 | F13: 2.338 | G13: 2015-04-08 | H13: 7 | I13: 2356 | J13: 10 | K13: 10 | L13: 10 | M13: 100 | N13: 2.356 | O13: 2.351 | P13: 302 | Q13: 28.69 | R13: 29.3075 | S13: 19.3 | T13: 151.8523316
A14: 2015-04-01 | B14: В15 | C14: Б07.1.02.1-15 | D14: 18 | E14: 19 | F14: 2.338 | G14: 2015-04-29 | H14: 28 | I14: 2346 | J14: 10 | K14: 10 | L14: 10 | M14: 100 | N14: 2.346 | O14: 2.349 | P14: 489 | Q14: 46.455 | R14: 47.215 | S14: 19.3 | T14: 244.6373057
A15: 2015-04-01 | B15: В15 | C15: Б07.1.02.1-15 | D15: 18 | E15: 19 | F15: 2.338 | G15: 2015-04-29 | H15: 28 | I15: 2352 | J15: 10 | K15: 10 | L15: 10 | M15: 100 | N15: 2.352 | O15: 2.349 | P15: 505 | Q15: 47.975 | R15: 47.215 | S15: 19.3 | T15: 244.6373057

Sheet В12,5
A1: В15
A2: Дата формования | B2: Класс бетонной смеси | C2: Шифр рецепта | D2: Температура бет.смеси, ºС | E2: ОК, см | F2: Плотность бет/см в уплотненном состоянии, кг/м3 | G2: дата испытаний | H2: Возраст, сут | I2: Масса образца, г | J2: Линейные размеры образца, см | M2: Площадь, см² | N2: Плотность образца, г/см³ | O2: Средняя плотность серии образцов, г/см³ | P2: Разрушающая нагрузка в Кн | Q2: Прочность бетона, приведенная к базовому размеру образца, Мпа | R2: Средняя прочность серии образцов, Мпа | S2: Требуемая прочность, Мпа | T2: % от требуемой прочности
J4: Длина | K4: Ширина | L4: Высота
A7: 4 | B7: 5 | C7: 6 | D7: 7 | E7: 8 | F7: 9 | G7: 10 | H7: 11 | I7: 12 | J7: 13 | M7: 14 | N7: 15 | O7: 16 | P7: 17 | Q7: 18 | R7: 19 | S7: 20 | T7: 21
A8: 2015-04-01 | B8: В15 | C8: Б07.1.02.1-15 | D8: 18 | E8: 19 | F8: 2.338 | G8: 2015-04-08 | H8: 7 | I8: 2348 | J8: 10 | K8: 10 | L8: 10 | M8: 100 | N8: 2.348 | O8: 2.352 | P8: 315 | Q8: 29.925 | R8: 29.3075 | S8: 19.3 | T8: 151.8523316
A9: 2015-04-01 | B9: В15 | C9: Б07.1.02.1-15 | D9: 18 | E9: 19 | F9: 2.338 | G9: 2015-04-08 | H9: 7 | I9: 2356 | J9: 10 | K9: 10 | L9: 10 | M9: 100 | N9: 2.356 | O9: 2.351 | P9: 302 | Q9: 28.69 | R9: 29.3075 | S9: 19.3 | T9: 151.8523316
A10: 2015-04-01 | B10: В15 | C10: Б07.1.02.1-15 | D10: 18 | E10: 19 | F10: 2.338 | G10: 2015-04-29 | H10: 28 | I10: 2346 | J10: 10 | K10: 10 | L10: 10 | M10: 100 | N10: 2.346 | O10: 2.349 | P10: 489 | Q10: 46.455 | R10: 47.215 | S10: 19.3 | T10: 244.6373057
A11: 2015-04-01 | B11: В15 | C11: Б07.1.02.1-15 | D11: 18 | E11: 19 | F11: 2.338 | G11: 2015-04-29 | H11: 28 | I11: 2352 | J11: 10 | K11: 10 | L11: 10 | M11: 100 | N11: 2.352 | O11: 2.349 | P11: 505 | Q11: 47.975 | R11: 47.215 | S11: 19.3 | T11: 244.6373057
A12: 2015-04-01 | B12: В15 | C12: Б07.1.02.1-15 | D12: 18 | E12: 19 | F12: 2.338 | G12: 2015-04-08 | H12: 7 | I12: 2348 | J12: 10 | K12: 10 | L12: 10 | M12: 100 | N12: 2.348 | O12: 2.352 | P12: 315 | Q12: 29.925 | R12: 29.3075 | S12: 19.3 | T12: 151.8523316
A13: 2015-04-01 | B13: В15 | C13: Б07.1.02.1-15 | D13: 18 | E13: 19 | F13: 2.338 | G13: 2015-04-08 | H13: 7 | I13: 2356 | J13: 10 | K13: 10 | L13: 10 | M13: 100 | N13: 2.356 | O13: 2.351 | P13: 302 | Q13: 28.69 | R13: 29.3075 | S13: 19.3 | T13: 151.8523316
A14: 2015-04-01 | B14: В15 | C14: Б07.1.02.1-15 | D14: 18 | E14: 19 | F14: 2.338 | G14: 2015-04-29 | H14: 28 | I14: 2346 | J14: 10 | K14: 10 | L14: 10 | M14: 100 | N14: 2.346 | O14: 2.349 | P14: 489 | Q14: 46.455 | R14: 47.215 | S14: 19.3 | T14: 244.6373057
A15: 2015-04-01 | B15: В15 | C15: Б07.1.02.1-15 | D15: 18 | E15: 19 | F15: 2.338 | G15: 2015-04-29 | H15: 28 | I15: 2352 | J15: 10 | K15: 10 | L15: 10 | M15: 100 | N15: 2.352 | O15: 2.349 | P15: 505 | Q15: 47.975 | R15: 47.215 | S15: 19.3 | T15: 244.6373057

Sheet В15
A1: В15
A2: Дата формования | B2: Класс бетонной смеси | C2: Шифр рецепта | D2: Температура бет.смеси, ºС | E2: ОК, см | F2: Плотность бет/см в уплотненном состоянии, кг/м3 | G2: дата испытаний | H2: Возраст, сут | I2: Масса образца, г | J2: Линейные размеры образца, см | M2: Площадь, см² | N2: Плотность образца, г/см³ | O2: Средняя плотность серии образцов, г/см³ | P2: Разрушающая нагрузка в Кн | Q2: Прочность бетона, приведенная к базовому размеру образца, Мпа | R2: Средняя прочность серии образцов, Мпа | S2: Требуемая прочность, Мпа | T2: % от требуемой прочности
J4: Длина | K4: Ширина | L4: Высота
A7: 4 | B7: 5 | C7: 6 | D7: 7 | E7: 8 | F7: 9 | G7: 10 | H7: 11 | I7: 12 | J7: 13 | M7: 14 | N7: 15 | O7: 16 | P7: 17 | Q7: 18 | R7: 19 | S7: 20 | T7: 21
A8: 2015-04-01 | B8: В15 | C8: Б07.1.02.1-15 | D8: 18 | E8: 19 | F8: 2.338 | G8: 2015-04-08 | H8: 7 | I8: 2348 | J8: 10 | K8: 10 | L8: 10 | M8: 100 | N8: 2.348 | O8: 2.352 | P8: 315 | Q8: 29.925 | R8: 29.3075 | S8: 19.3 | T8: 151.8523316
A9: 2015-04-01 | B9: В15 | C9: Б07.1.02.1-15 | D9: 18 | E9: 19 | F9: 2.338 | G9: 2015-04-08 | H9: 7 | I9: 2356 | J9: 10 | K9: 10 | L9: 10 | M9: 100 | N9: 2.356 | O9: 2.351 | P9: 302 | Q9: 28.69 | R9: 29.3075 | S9: 19.3 | T9: 151.8523316
A10: 2015-04-01 | B10: В15 | C10: Б07.1.02.1-15 | D10: 18 | E10: 19 | F10: 2.338 | G10: 2015-04-29 | H10: 28 | I10: 2346 | J10: 10 | K10: 10 | L10: 10 | M10: 100 | N10: 2.346 | O10: 2.349 | P10: 489 | Q10: 46.455 | R10: 47.215 | S10: 19.3 | T10: 244.6373057
A11: 2015-04-01 | B11: В15 | C11: Б07.1.02.1-15 | D11: 18 | E11: 19 | F11: 2.338 | G11: 2015-04-29 | H11: 28 | I11: 2352 | J11: 10 | K11: 10 | L11: 10 | M11: 100 | N11: 2.352 | O11: 2.349 | P11: 505 | Q11: 47.975 | R11: 47.215 | S11: 19.3 | T11: 244.6373057
A12: 2015-04-01 | B12: В15 | C12: Б07.1.02.1-15 | D12: 18 | E12: 19 | F12: 2.338 | G12: 2015-04-08 | H12: 7 | I12: 2348 | J12: 10 | K12: 10 | L12: 10 | M12: 100 | N12: 2.348 | O12: 2.352 | P12: 315 | Q12: 29.925 | R12: 29.3075 | S12: 19.3 | T12: 151.8523316
A13: 2015-04-01 | B13: В15 | C13: Б07.1.02.1-15 | D13: 18 | E13: 19 | F13: 2.338 | G13: 2015-04-08 | H13: 7 | I13: 2356 | J13: 10 | K13: 10 | L13: 10 | M13: 100 | N13: 2.356 | O13: 2.351 | P13: 302 | Q13: 28.69 | R13: 29.3075 | S13: 19.3 | T13: 151.8523316
A14: 2015-04-01 | B14: В15 | C14: Б07.1.02.1-15 | D14: 18 | E14: 19 | F14: 2.338 | G14: 2015-04-29 | H14: 28 | I14: 2346 | J14: 10 | K14: 10 | L14: 10 | M14: 100 | N14: 2.346 | O14: 2.349 | P14: 489 | Q14: 46.455 | R14: 47.215 | S14: 19.3 | T14: 244.6373057
A15: 2015-04-01 | B15: В15 | C15: Б07.1.02.1-15 | D15: 18 | E15: 19 | F15: 2.338 | G15: 2015-04-29 | H15: 28 | I15: 2352 | J15: 10 | K15: 10 | L15: 10 | M15: 100 | N15: 2.352 | O15: 2.349 | P15: 505 | Q15: 47.975 | R15: 47.215 | S15: 19.3 | T15: 244.6373057

Sheet В20
A1: В15
A2: Дата формования | B2: Класс бетонной смеси | C2: Шифр рецепта | D2: Температура бет.смеси, ºС | E2: ОК, см | F2: Плотность бет/см в уплотненном состоянии, кг/м3 | G2: дата испытаний | H2: Возраст, сут | I2: Масса образца, г | J2: Линейные размеры образца, см | M2: Площадь, см² | N2: Плотность образца, г/см³ | O2: Средняя плотность серии образцов, г/см³ | P2: Разрушающая нагрузка в Кн | Q2: Прочность бетона, приведенная к базовому размеру образца, Мпа | R2: Средняя прочность серии образцов, Мпа | S2: Требуемая прочность, Мпа | T2: % от требуемой прочности
J4: Длина | K4: Ширина | L4: Высота
A7: 4 | B7: 5 | C7: 6 | D7: 7 | E7: 8 | F7: 9 | G7: 10 | H7: 11 | I7: 12 | J7: 13 | M7: 14 | N7: 15 | O7: 16 | P7: 17 | Q7: 18 | R7: 19 | S7: 20 | T7: 21

Sheet В22,5
A1: В15
A2: Дата формования | B2: Класс бетонной смеси | C2: Шифр рецепта | D2: Температура бет.смеси, ºС | E2: ОК, см | F2: Плотность бет/см в уплотненном состоянии, кг/м3 | G2: дата испытаний | H2: Возраст, сут | I2: Масса образца, г | J2: Линейные размеры образца, см | M2: Площадь, см² | N2: Плотность образца, г/см³ | O2: Средняя плотность серии образцов, г/см³ | P2: Разрушающая нагрузка в Кн | Q2: Прочность бетона, приведенная к базовому размеру образца, Мпа | R2: Средняя прочность серии образцов, Мпа | S2: Требуемая прочность, Мпа | T2: % от требуемой прочности
J4: Длина | K4: Ширина | L4: Высота
A7: 4 | B7: 5 | C7: 6 | D7: 7 | E7: 8 | F7: 9 | G7: 10 | H7: 11 | I7: 12 | J7: 13 | M7: 14 | N7: 15 | O7: 16 | P7: 17 | Q7: 18 | R7: 19 | S7: 20 | T7: 21

Sheet В25
A1: Дата формования | B1: Класс бетонной смеси | C1: Шифр рецепта | D1: Температура бет.смеси, ºС | E1: ОК, см | F1: Плотность бет/см в уплотненном состоянии, кг/м3 | G1: дата испытаний | H1: Возраст, сут | I1: Масса образца, г | J1: Линейные размеры образца, см | M1: Площадь, см² | N1: Плотность образца, г/см³ | O1: Средняя плотность серии образцов, г/см³ | P1: Разрушающая нагрузка в Кн | Q1: Прочность бетона, приведенная к базовому размеру образца, Мпа | R1: Средняя прочность серии образцов, Мпа | S1: Требуемая прочность, Мпа | T1: % от требуемой прочности
J3: Длина | K3: Ширина | L3: Высота
A6: 2015-04-01 | B6: В25 | C6: Б07.1.02.1-15 | D6: 18 | E6: 19 | F6: 2.338 | G6: 2015-04-08 | H6: 7 | I6: 2348 | J6: 10 | K6: 10 | L6: 10 | M6: 100 | N6: 2.348 | O6: 2.352 | P6: 315 | Q6: 29.925 | R6: 29.3075 | S6: 32.1 | T6: 91.30062305
A7: 2015-04-01 | B7: В25 | C7: Б07.1.02.1-15 | D7: 18 | E7: 19 | F7: 2.338 | G7: 2015-04-08 | H7: 7 | I7: 2356 | J7: 10 | K7: 10 | L7: 10 | M7: 100 | N7: 2.356 | O7: 2.351 | P7: 302 | Q7: 28.69 | R7: 29.3075 | S7: 32.1 | T7: 91.30062305
A8: 2015-04-01 | B8: В25 | C8: Б07.1.02.1-15 | D8: 18 | E8: 19 | F8: 2.338 | G8: 2015-04-29 | H8: 28 | I8: 2346 | J8: 10 | K8: 10 | L8: 10 | M8: 100 | N8: 2.346 | O8: 2.349 | P8: 489 | Q8: 46.455 | R8: 47.215 | S8: 32.1 | T8: 147.0872274
A9: 2015-04-01 | B9: В25 | C9: Б07.1.02.1-15 | D9: 18 | E9: 19 | F9: 2.338 | G9: 2015-04-29 | H9: 28 | I9: 2352 | J9: 10 | K9: 10 | L9: 10 | M9: 100 | N9: 2.352 | O9: 2.349 | P9: 505 | Q9: 47.975 | R9: 47.215 | S9: 32.1 | T9: 147.0872274
A10: 2015-04-01 | B10: В25 | C10: Б07.1.02.1-15 | D10: 18 | E10: 19 | F10: 2.338 | G10: 2015-04-08 | H10: 7 | I10: 2348 | J10: 10 | K10: 10 | L10: 10 | M10: 100 | N10: 2.348 | O10: 2.352 | P10: 315 | Q10: 29.925 | R10: 29.3075 | S10: 32.1 | T10: 91.30062305
A11: 2015-04-01 | B11: В25 | C11: Б07.1.02.1-15 | D11: 18 | E11: 19 | F11: 2.338 | G11: 2015-04-08 | H11: 7 | I11: 2356 | J11: 10 | K11: 10 | L11: 10 | M11: 100 | N11: 2.356 | O11: 2.351 | P11: 302 | Q11: 28.69 | R11: 29.3075 | S11: 32.1 | T11: 91.30062305
A12: 2015-04-01 | B12: В25 | C12: Б07.1.02.1-15 | D12: 18 | E12: 19 | F12: 2.338 | G12: 2015-04-29 | H12: 28 | I12: 2346 | J12: 10 | K12: 10 | L12: 10 | M12: 100 | N12: 2.346 | O12: 2.349 | P12: 489 | Q12: 46.455 | R12: 47.215 | S12: 32.1 | T12: 147.0872274
A13: 2015-04-01 | B13: В25 | C13: Б07.1.02.1-15 | D13: 18 | E13: 19 | F13: 2.338 | G13: 2015-04-29 | H13: 28 | I13: 2352 | J13: 10 | K13: 10 | L13: 10 | M13: 100 | N13: 2.352 | O13: 2.349 | P13: 505 | Q13: 47.975 | R13: 47.215 | S13: 32.1 | T13: 147.0872274

Sheet В30
A1: В15
A2: Дата формования | B2: Класс бетонной смеси | C2: Шифр рецепта | D2: Температура бет.смеси, ºС | E2: ОК, см | F2: Плотность бет/см в уплотненном состоянии, кг/м3 | G2: дата испытаний | H2: Возраст, сут | I2: Масса образца, г | J2: Линейные размеры образца, см | M2: Площадь, см² | N2: Плотность образца, г/см³ | O2: Средняя плотность серии образцов, г/см³ | P2: Разрушающая нагрузка в Кн | Q2: Прочность бетона, приведенная к базовому размеру образца, Мпа | R2: Средняя прочность серии образцов, Мпа | S2: Требуемая прочность, Мпа | T2: % от требуемой прочности
J4: Длина | K4: Ширина | L4: Высота
A7: 4 | B7: 5 | C7: 6 | D7: 7 | E7: 8 | F7: 9 | G7: 10 | H7: 11 | I7: 12 | J7: 13 | M7: 14 | N7: 15 | O7: 16 | P7: 17 | Q7: 18 | R7: 19 | S7: 20 | T7: 21

Sheet М75
A1: Дата формования | B1: Класс бетонной смеси | C1: Шифр рецепта | D1: Температура бет.смеси, ºС | E1: ОК, см | F1: Плотность бет/см в уплотненном состоянии, кг/м3 | G1: дата испытаний | H1: Возраст, сут | I1: Масса образца, г | J1: Линейные размеры образца, см | M1: Площадь, см² | N1: Плотность образца, г/см³ | O1: Средняя плотность серии образцов, г/см³ | P1: Разрушающая нагрузка в Кн | Q1: Прочность бетона, приведенная к базовому размеру образца, Мпа | R1: Средняя прочность серии образцов, Мпа | S1: Требуемая прочность, Мпа | T1: % от требуемой прочности
J3: Длина | K3: Ширина | L3: Высота
A6: 4 | B6: 5 | C6: 6 | D6: 7 | E6: 8 | F6: 9 | G6: 10 | H6: 11 | I6: 12 | J6: 13 | M6: 14 | N6: 15 | O6: 16 | P6: 17 | Q6: 18 | R6: 19 | S6: 20 | T6: 21

Sheet М100
A1: Дата формования | B1: Класс бетонной смеси | C1: Шифр рецепта | D1: Температура бет.смеси, ºС | E1: ОК, см | F1: Плотность бет/см в уплотненном состоянии, кг/м3 | G1: дата испытаний | H1: Возраст, сут | I1: Масса образца, г | J1: Линейные размеры образца, см | M1: Площадь, см² | N1: Плотность образца, г/см³ | O1: Средняя плотность серии образцов, г/см³ | P1: Разрушающая нагрузка в Кн | Q1: Прочность бетона, приведенная к базовому размеру образца, Мпа | R1: Средняя прочность серии образцов, Мпа | S1: Требуемая прочность, Мпа | T1: % от требуемой прочности
J3: Длина | K3: Ширина | L3: Высота
A6: 4 | B6: 5 | C6: 6 | D6: 7 | E6: 8 | F6: 9 | G6: 10 | H6: 11 | I6: 12 | J6: 13 | M6: 14 | N6: 15 | O6: 16 | P6: 17 | Q6: 18 | R6: 19 | S6: 20 | T6: 21

Sheet М150
A1: Дата формования | B1: Класс бетонной смеси | C1: Шифр рецепта | D1: Температура бет.смеси, ºС | E1: ОК, см | F1: Плотность бет/см в уплотненном состоянии, кг/м3 | G1: дата испытаний | H1: Возраст, сут | I1: Масса образца, г | J1: Линейные размеры образца, см | M1: Площадь, см² | N1: Плотность образца, г/см³ | O1: Средняя плотность серии образцов, г/см³ | P1: Разрушающая нагрузка в Кн | Q1: Прочность бетона, приведенная к базовому размеру образца, Мпа | R1: Средняя прочность серии образцов, Мпа | S1: Требуемая прочность, Мпа | T1: % от требуемой прочности
J3: Длина | K3: Ширина | L3: Высота
A6: 4 | B6: 5 | C6: 6 | D6: 7 | E6: 8 | F6: 9 | G6: 10 | H6: 11 | I6: 12 | J6: 13 | M6: 14 | N6: 15 | O6: 16 | P6: 17 | Q6: 18 | R6: 19 | S6: 20 | T6: 21

Sheet М200
A1: Дата формования | B1: Класс бетонной смеси | C1: Шифр рецепта | D1: Температура бет.смеси, ºС | E1: ОК, см | F1: Плотность бет/см в уплотненном состоянии, кг/м3 | G1: дата испытаний | H1: Возраст, сут | I1: Масса образца, г | J1: Линейные размеры образца, см | M1: Площадь, см² | N1: Плотность образца, г/см³ | O1: Средняя плотность серии образцов, г/см³ | P1: Разрушающая нагрузка в Кн | Q1: Прочность бетона, приведенная к базовому размеру образца, Мпа | R1: Средняя прочность серии образцов, Мпа | S1: Требуемая прочность, Мпа | T1: % от требуемой прочности
J3: Длина | K3: Ширина | L3: Высота
A6: 4 | B6: 5 | C6: 6 | D6: 7 | E6: 8 | F6: 9 | G6: 10 | H6: 11 | I6: 12 | J6: 13 | M6: 14 | N6: 15 | O6: 16 | P6: 17 | Q6: 18 | R6: 19 | S6: 20 | T6: 21

Sheet М250
A1: Дата формования | B1: Класс бетонной смеси | C1: Шифр рецепта | D1: Температура бет.смеси, ºС | E1: ОК, см | F1: Плотность бет/см в уплотненном состоянии, кг/м3 | G1: дата испытаний | H1: Возраст, сут | I1: Масса образца, г | J1: Линейные размеры образца, см | M1: Площадь, см² | N1: Плотность образца, г/см³ | O1: Средняя плотность серии образцов, г/см³ | P1: Разрушающая нагрузка в Кн | Q1: Прочность бетона, приведенная к базовому размеру образца, Мпа | R1: Средняя прочность серии образцов, Мпа | S1: Требуемая прочность, Мпа | T1: % от требуемой прочности
J3: Длина | K3: Ширина | L3: Высота
A6: 4 | B6: 5 | C6: 6 | D6: 7 | E6: 8 | F6: 9 | G6: 10 | H6: 11 | I6: 12 | J6: 13 | M6: 14 | N6: 15 | O6: 16 | P6: 17 | Q6: 18 | R6: 19 | S6: 20 | T6: 21

Sheet М300
A1: Дата формования | B1: Класс бетонной смеси | C1: Шифр рецепта | D1: Температура бет.смеси, ºС | E1: ОК, см | F1: Плотность бет/см в уплотненном состоянии, кг/м3 | G1: дата испытаний | H1: Возраст, сут | I1: Масса образца, г | J1: Линейные размеры образца, см | M1: Площадь, см² | N1: Плотность образца, г/см³ | O1: Средняя плотность серии образцов, г/см³ | P1: Разрушающая нагрузка в Кн | Q1: Прочность бетона, приведенная к базовому размеру образца, Мпа | R1: Средняя прочность серии образцов, Мпа | S1: Требуемая прочность, Мпа | T1: % от требуемой прочности
J3: Длина | K3: Ширина | L3: Высота
A6: 4 | B6: 5 | C6: 6 | D6: 7 | E6: 8 | F6: 9 | G6: 10 | H6: 11 | I6: 12 | J6: 13 | M6: 14 | N6: 15 | O6: 16 | P6: 17 | Q6: 18 | R6: 19 | S6: 20 | T6: 21

Sheet Корректировка
B2: Лаборанты | D2: Операторы
A3: 1 | B3: Болтенкова И.Ю. | C3: 1 | D3: Масленков А.А | E3: 6 | F3: В5 | G3: 6.4 | I3: М75 | J3: 6.4
B4: Кубакова Л.Р. | D4: Масленков Ю.А | F4: В7,5 | G4: 9.6 | I4: М100 | J4: 9.6
B5: Приходько В.А | D5: Петров Е.А | F5: В10 | G5: 12.8 | I5: М150 | J5: 12.8
B6: Сухоручкин С.В | D6: Соложеницын А.В | F6: В12,5 | G6: 16.1 | I6: М150 | J6: 16.1
F7: В15 | G7: 19.3 | I7: М200 | J7: 19.3
F8: В20 | G8: 25.7 | I8: М250 | J8: 25.7
F9: В22,5 | G9: 28.9 | I9: М300 | J9: 28.9
F10: В25 | G10: 32.1 | I10: М350 | J10: 32.1
F11: В30 | G11: 38.5 | I11: М400 | J11: 38.5
F12: В35 | G12: 45 | I12: М450 | J12: 45
F13: В40 | G13: 51.4 | I13: М550 | J13: 51.4
F14: В45 | G14: 57.8 | I14: М600 | J14: 57.8
F15: В50 | G15: 64.2 | I15: М700 | J15: 64.2
